Merchandising Type Category,Detailed Merchant Category,Supplier,Purchase Details,Transaction Date,Value,Department
Miscellaneous,Charitable/Soc Service Orgs,Social Research Assn,Supplies and Services related expenditure,12/09/2023,70,Director of Corporate Services
Miscellaneous,Charitable/Soc Service Orgs,Social Research Assn,Supplies and Services related expenditure,12/09/2023,165,Director of Corporate Services
Type of Retail Store,Grocery Stores/Supermarkets,Tesco Stores 4611,Supplies and Services related expenditure,02/08/2023,0.9,Director of Adult Care
Type of Retail Store,Grocery Stores/Supermarkets,Tesco Stores 4611,Supplies and Services related expenditure,12/07/2023,1.3,Director of Adult Care
Type of Retail Store,Grocery Stores/Supermarkets,Tesco Stores 4611,Supplies and Services related expenditure,19/07/2023,1.3,Director of Adult Care
Type of Retail Store,Grocery Stores/Supermarkets,Tesco Stores 4611,Supplies and Services related expenditure,30/08/2023,1.3,Director of Adult Care
Type of Retail Store,Grocery Stores/Supermarkets,Tesco Stores 4611,Supplies and Services related expenditure,06/09/2023,1.3,Director of Adult Care
Type of Retail Store,Grocery Stores/Supermarkets,Tesco Stores 4611,Supplies and Services related expenditure,13/09/2023,1.3,Director of Adult Care
Type of Retail Store,Grocery Stores/Supermarkets,Tesco Stores 4611,Supplies and Services related expenditure,20/09/2023,1.3,Director of Adult Care
Type of Retail Store,Grocery Stores/Supermarkets,Tesco Stores 4611,Supplies and Services related expenditure,27/09/2023,1.3,Director of Adult Care
Type of Retail Store,Grocery Stores/Supermarkets,Asda Stores,Supplies and Services related expenditure,26/09/2023,2,Director of Adult Care
Type of Retail Store,Grocery Stores/Supermarkets,Ppoint_*portsmouth Ifc Lt,Supplies and Services related expenditure,26/09/2023,2.19,Director of Adult Care
Type of Retail Store,Grocery Stores/Supermarkets,Farmfoods 750,Supplies and Services related expenditure,07/08/2023,2.99,Director of Adult Care
Other Supplies,Misc Gen Merchandise - Def,Wilko Retail Limited,Supplies and Services related expenditure,21/08/2023,2.92,Director of Adult Care
Type of Retail Store,Grocery Stores/Supermarkets,Tesco Stores 3048,Supplies and Services related expenditure,22/08/2023,3.7,Director of Adult Care
Type of Retail Store,Grocery Stores/Supermarkets,Tesco Stores 4611,Supplies and Services related expenditure,16/08/2023,4.2,Director of Adult Care
Other Supplies,Misc Gen Merchandise - Def,Wilko Retail Limited,Supplies and Services related expenditure,25/09/2023,5,Director of Adult Care
Type of Retail Store,Grocery Stores/Supermarkets,Asda Stores,Supplies and Services related expenditure,22/08/2023,15.32,Director of Adult Care
Type of Retail Store,Grocery Stores/Supermarkets,Asda Stores,Supplies and Services related expenditure,29/08/2023,19.44,Director of Adult Care
Type of Retail Store,Grocery Stores/Supermarkets,Asda Stores,Supplies and Services related expenditure,15/08/2023,20.54,Director of Adult Care
Miscellaneous,Member Organizations - Def,Www.Oup.Com,Supplies and Services related expenditure,12/09/2023,11.07,Director of Children's Services and Education
Business To Business Eqpt/Furn,Stationery/Office Supplies,Cartridge Save,Supplies and Services related expenditure,06/07/2023,-11.52,Director of Children's Services and Education
Government Service,Govt Serv - Default,Gosport Bc Internet,Supplies and Services related expenditure,03/07/2023,25,Director of Children's Services and Education
Type of Retail Store,Sports/Riding Apparel Store,Www.Kitlocker.Com,Supplies and Services related expenditure,22/09/2023,23.87,Director of Children's Services and Education
Government Service,Govt Serv - Default,Www.Ico.Org.Uk,Supplies and Services related expenditure,22/08/2023,40,Director of Children's Services and Education
Other Supplies,Misc Speciality Retail,School Merit Stickers,Supplies and Services related expenditure,15/09/2023,37.45,Director of Children's Services and Education
Other Supplies,Misc Speciality Retail,Mol*primary Teaching S...,Supplies and Services related expenditure,11/09/2023,67.92,Director of Children's Services and Education
Government Service,Govt Serv - Default,Hampshire County Counc,Supplies and Services related expenditure,11/09/2023,73.08,Director of Children's Services and Education
Government Service,Govt Serv - Default,Hampshire County Counc,Supplies and Services related expenditure,22/09/2023,73.35,Director of Children's Services and Education
Equipment And Furniture,Furniture/Equip Stores,Www.Peters-Educational,Supplies and Services related expenditure,20/09/2023,92.24,Director of Children's Services and Education
Utility,Phone Serv/Equip Utility,Vodafone Ltd,Supplies and Services related expenditure,21/07/2023,90.12,Director of Children's Services and Education
Utility,Phone Serv/Equip Utility,Vodafone Ltd,Supplies and Services related expenditure,22/08/2023,94.28,Director of Children's Services and Education
Utility,Phone Serv/Equip Utility,Vodafone Ltd,Supplies and Services related expenditure,15/09/2023,94.28,Director of Children's Services and Education
Business To Business Eqpt/Furn,Stationery/Office Supplies,Cartridge Save,Supplies and Services related expenditure,13/07/2023,-119.47,Director of Children's Services and Education
Miscellaneous,Member Organizations - Def,Www.Oup.Com,Supplies and Services related expenditure,12/09/2023,165.83,Director of Children's Services and Education
Business To Business Eqpt/Furn,Book Stores,Www.Direct-Ed.Co.Uk,Supplies and Services related expenditure,11/09/2023,180.3,Director of Children's Services and Education
Government Service,Correspondence Schools,White Rose Maths,Supplies and Services related expenditure,15/09/2023,183.33,Director of Children's Services and Education
Amusement/Entertainment,Tourist Attractions And Xhbt,Beaulieu Accounts,Supplies and Services related expenditure,19/07/2023,186.67,Director of Children's Services and Education
Amusement/Entertainment,Bands/Orchestras/Entertain,Bh Live-Accounts,Agency and Third Party Payments related expenditure,28/09/2023,224,Director of Children's Services and Education
Business Expenses/Services,Books/Periodicals/Newspapers,Twinkl Educational Pub,Supplies and Services related expenditure,26/09/2023,189.32,Director of Children's Services and Education
Government Service,Govt Serv - Default,Hampshire County Counc,Supplies and Services related expenditure,11/09/2023,198.26,Director of Children's Services and Education
Government Service,Schools - Default,Language Angels,Supplies and Services related expenditure,15/09/2023,212,Director of Children's Services and Education
Utility,Utilities/Elec/Gas/H2O/Sani,Https://Customerhu,Premises related expenditure,21/07/2023,280.48,Director of Children's Services and Education
Utility,Utilities/Elec/Gas/H2O/Sani,Https://Customerhu,Premises related expenditure,06/09/2023,286.26,Director of Children's Services and Education
Professional Services,Computer Program/Sys Design,Wp-Doublestruck Lt,Supplies and Services related expenditure,04/08/2023,295,Director of Children's Services and Education
Type of Retail Store,Sports/Riding Apparel Store,Www.Kitlocker.Com,Supplies and Services related expenditure,22/09/2023,354.89,Director of Children's Services and Education
Utility,Utilities/Elec/Gas/H2O/Sani,Https://Customerhu,Premises related expenditure,04/08/2023,348.84,Director of Children's Services and Education
Government Service,Govt Serv - Default,Hampshire County Counc,Supplies and Services related expenditure,03/07/2023,370.53,Director of Children's Services and Education
Business Expenses/Services,Stationery Stores,Www.Tts-Groups.Co.Uk,Supplies and Services related expenditure,04/07/2023,484.46,Director of Children's Services and Education
Type of Retail Store,Electronics Sales,Laptops Direct,Supplies and Services related expenditure,21/09/2023,633.3,Director of Children's Services and Education
Business To Business Facility/,Hardware Equipment/Supplies,Ross Handling Ltd,Supplies and Services related expenditure,25/08/2023,15.75,"Director of Housing, Neighbourhood and Building Services"
Facilities/Repair Supplies,Automotive Parts Stores,Halfords E.Comm,Supplies and Services related expenditure,27/09/2023,183.33,"Director of Housing, Neighbourhood and Building Services"
Business Expenses/Services,Florists,Www.Bloomandwild.Com,Supplies and Services related expenditure,04/09/2023,25,Director of Children's Services and Education
Transportation Conveyor,Local Commuter Transport,Hovertravel Ltd- Ecomm,Transport related expenditure,23/08/2023,31,Director of Children's Services and Education
Equipment And Furniture,Household Appliance Stores,Manomano,Supplies and Services related expenditure,13/09/2023,45.99,Director of Children's Services and Education
Other Supplies,Department Stores,Www.Argos.Co.Uk,Supplies and Services related expenditure,13/09/2023,125,Director of Children's Services and Education
Other Supplies,Department Stores,Www.Argos.Co.Uk,Supplies and Services related expenditure,11/09/2023,202.95,Director of Children's Services and Education
Type of Retail Store,Grocery Stores/Supermarkets,Asda Stores,Supplies and Services related expenditure,08/09/2023,21,"Director of Housing, Neighbourhood and Building Services"
Transportation Conveyor,Bus Lines/Charter/Tour,Metrolink Tvm,Transport related expenditure,27/07/2023,1.4,Director of Children's Services and Education
Transportation Conveyor,Bus Lines/Charter/Tour,First Manchester,Transport related expenditure,27/07/2023,2,Director of Children's Services and Education
Eating And Drinking Places,Eating Places/Restaurants,McDonalds,Supplies and Services related expenditure,05/09/2023,2.49,Director of Children's Services and Education
Business To Business Eqpt/Furn,Computer Software Stores,Wifi: Travelodge - Wi,Supplies and Services related expenditure,17/09/2023,3,Director of Children's Services and Education
Transportation Conveyor,"Parking Lots, Meters, Garages",Www.Portsmouthcc.Gov.U,Supplies and Services related expenditure,22/08/2023,3,Director of Children's Services and Education
Eating And Drinking Places,Fast Food Restaurants,Gida Express,Supplies and Services related expenditure,19/09/2023,2.92,Director of Children's Services and Education
Business Expenses/Services,News Dealers/Newsstands,Wh Smith Southampton Rail,Supplies and Services related expenditure,28/07/2023,3.23,Director of Children's Services and Education
Eating And Drinking Places,Fast Food Restaurants,McDonalds1049,Supplies and Services related expenditure,31/08/2023,3.32,Director of Children's Services and Education
Government Service,Govt Serv - Default,Www.Portsmouthcc.Gov.U,Supplies and Services related expenditure,25/09/2023,4.5,Director of Children's Services and Education
Transportation Conveyor,Taxicabs/Limousines,Zettle_*g T Taxis,Transport related expenditure,22/08/2023,3.92,Director of Children's Services and Education
Auto/Vehicle Expenses,Toll And Bridge Fees,Dart-Charge,Transport related expenditure,05/07/2023,4.17,Director of Children's Services and Education
Transportation Conveyor,Taxicabs/Limousines,Sumup *cab E,Transport related expenditure,20/07/2023,4.42,Director of Children's Services and Education
Medical,Hospitals,Rbht Catering,Supplies and Services related expenditure,18/09/2023,4.75,Director of Children's Services and Education
Transportation Conveyor,"Parking Lots, Meters, Garages",The Hillindon Hospital,Transport related expenditure,18/07/2023,5.5,Director of Children's Services and Education
Transportation Conveyor,"Parking Lots, Meters, Garages",Portsmouth City Council 3,Transport related expenditure,20/07/2023,5.58,Director of Children's Services and Education
Transportation Conveyor,"Parking Lots, Meters, Garages",Portsmouth City Council 3,Transport related expenditure,22/08/2023,5.58,Director of Children's Services and Education
Eating And Drinking Places,Eating Places/Restaurants,Eden Park,Supplies and Services related expenditure,30/08/2023,7.49,Director of Children's Services and Education
Transportation Conveyor,"Parking Lots, Meters, Garages",Horizon Travelodge Lon,Transport related expenditure,17/09/2023,7.5,Director of Children's Services and Education
Eating And Drinking Places,Eating Places/Restaurants,One Plus,Supplies and Services related expenditure,27/07/2023,8.79,Director of Children's Services and Education
Transportation Conveyor,"Parking Lots, Meters, Garages",Paybyphone Re Rbkc,Transport related expenditure,18/09/2023,9,Director of Children's Services and Education
Hotels And Motels,Premier Travel Inns,Premier Inn,Supplies and Services related expenditure,15/08/2023,9.57,Director of Children's Services and Education
Transportation Conveyor,"Parking Lots, Meters, Garages",Yourparkingspace,Transport related expenditure,15/08/2023,12.5,Director of Children's Services and Education
Transportation Conveyor,Passenger Railways,Lul Ticket Machine,Transport related expenditure,06/07/2023,15.2,Director of Children's Services and Education
Business Services,Business Services - Default,Ulezpayservice,Transport related expenditure,06/07/2023,14.58,Director of Children's Services and Education
Utility,Phone Serv/Equip Utility,Ee Store 4951,Supplies and Services related expenditure,01/08/2023,20,Director of Children's Services and Education
Type of Retail Store,Grocery Stores/Supermarkets,Tesco Gift Card,Supplies and Services related expenditure,07/09/2023,20,Director of Children's Services and Education
Type of Retail Store,Grocery Stores/Supermarkets,Tesco Stores 4611,Supplies and Services related expenditure,29/09/2023,20,Director of Children's Services and Education
Transportation Conveyor,"Parking Lots, Meters, Garages",Jb Luxury Ltd T As Car Pa,Transport related expenditure,06/07/2023,22,Director of Children's Services and Education
Transportation Conveyor,Taxicabs/Limousines,Sumup *paul Toplass Redl,Supplies and Services related expenditure,25/09/2023,23.9,Director of Children's Services and Education
Transportation Conveyor,Passenger Railways,Trainline,Transport related expenditure,20/09/2023,24.13,Director of Children's Services and Education
Miscellaneous,Member Organizations - Def,Sumup *redline,Supplies and Services related expenditure,25/09/2023,24.5,Director of Children's Services and Education
Type of Retail Store,Grocery Stores/Supermarkets,Farmfoods 750,Supplies and Services related expenditure,19/09/2023,34.55,Director of Children's Services and Education
Transportation Conveyor,Local Commuter Transport,Hovertravel Ltd,Supplies and Services related expenditure,25/09/2023,36.5,Director of Children's Services and Education
Transportation Conveyor,Passenger Railways,Swrailway Tck Off,Transport related expenditure,05/07/2023,38,Director of Children's Services and Education
Type of Retail Store,Grocery Stores/Supermarkets,Southern Co-Op 0328,Supplies and Services related expenditure,20/09/2023,49,Director of Children's Services and Education
Type of Retail Store,Grocery Stores/Supermarkets,Southern Co-Op 0328,Supplies and Services related expenditure,20/09/2023,49,Director of Children's Services and Education
Hotels And Motels,Lodging/Hotels/Motels/Resorts,Pendulum Hotel Manchester,Supplies and Services related expenditure,27/07/2023,55.14,Director of Children's Services and Education
Government Service,Govt Serv - Default,2maa039952816 Td E-Pmt,Supplies and Services related expenditure,30/08/2023,62.5,Director of Children's Services and Education
Transportation Conveyor,"Parking Lots, Meters, Garages",Euro Car Parks Limited Ma,Transport related expenditure,18/09/2023,62.5,Director of Children's Services and Education
Eating And Drinking Places,Eating Places/Restaurants,Eden Park,Supplies and Services related expenditure,30/08/2023,97.49,Director of Children's Services and Education
Government Service,Govt Serv - Default,Portsmouth Council,Supplies and Services related expenditure,05/09/2023,120.66,Director of Children's Services and Education
Business Services,Business Services - Default,Debra,Supplies and Services related expenditure,07/09/2023,250,Director of Children's Services and Education
Type of Retail Store,Grocery Stores/Supermarkets,Tesco Stores 4579,Supplies and Services related expenditure,22/07/2023,10,"Director of Housing, Neighbourhood and Building Services"
Other Supplies,Misc Speciality Retail,Timpson Ltd,Supplies and Services related expenditure,22/07/2023,12.5,"Director of Housing, Neighbourhood and Building Services"
Type of Retail Store,Grocery Stores/Supermarkets,Aldi Stores Ltd,Supplies and Services related expenditure,16/08/2023,16.94,"Director of Housing, Neighbourhood and Building Services"
Facilities/Repair Supplies,Misc Home Furnishing,The Range,Premises related expenditure,15/08/2023,33.13,"Director of Housing, Neighbourhood and Building Services"
Other Supplies,Misc Speciality Retail,Timpson Ltd,Supplies and Services related expenditure,22/07/2023,48.33,"Director of Housing, Neighbourhood and Building Services"
Automobile Services & Supplies,Service Stations,Asda Petrol 4583,Premises related expenditure,11/08/2023,83.33,"Director of Housing, Neighbourhood and Building Services"
Facilities/Repair Supplies,Lumber/Build. Supply Stores,Screwfix Portsmouth Hilse,Supplies and Services related expenditure,26/09/2023,107.24,"Director of Housing, Neighbourhood and Building Services"
Type of Retail Store,Grocery Stores/Supermarkets,Tesco Stores 3055,Supplies and Services related expenditure,21/08/2023,134.13,"Director of Housing, Neighbourhood and Building Services"
Type of Retail Store,Grocery Stores/Supermarkets,Tesco Stores 5837,Supplies and Services related expenditure,10/09/2023,1.5,Director of Adult Care
Type of Retail Store,Drug Stores & Pharmacies,Boots 1014,Supplies and Services related expenditure,10/09/2023,2.5,Director of Adult Care
Type of Retail Store,Grocery Stores/Supermarkets,Asda Stores,Supplies and Services related expenditure,07/09/2023,7.5,Director of Adult Care
Type of Retail Store,Grocery Stores/Supermarkets,Loco Om Sai Limited,Supplies and Services related expenditure,12/09/2023,8.33,Director of Adult Care
Type of Retail Store,Grocery Stores/Supermarkets,Tesco Stores 2322,Supplies and Services related expenditure,11/09/2023,16.64,Director of Adult Care
Type of Retail Store,Grocery Stores/Supermarkets,Wm Morrisons Store,Supplies and Services related expenditure,09/09/2023,17.95,Director of Adult Care
Transportation Conveyor,Taxicabs/Limousines,Sumup *starline,Supplies and Services related expenditure,09/09/2023,25,Director of Adult Care
Type of Retail Store,Grocery Stores/Supermarkets,Asda Stores,Supplies and Services related expenditure,13/09/2023,35.75,Director of Adult Care
Government Service,Govt Serv - Default,Portsmouth City Co,Transport related expenditure,16/08/2023,63.33,Director of Adult Care
Government Service,Govt Serv - Default,Portsmouth City Co,Transport related expenditure,16/08/2023,63.33,Director of Adult Care
Government Service,Govt Serv - Default,Portsmouth City Co,Transport related expenditure,23/08/2023,63.33,Director of Adult Care
Other Supplies,Discount Stores,Argos Ltd,Supplies and Services related expenditure,09/09/2023,124.99,Director of Adult Care
Type of Retail Store,Grocery Stores/Supermarkets,Asda Stores,Supplies and Services related expenditure,08/09/2023,203.81,Director of Adult Care
Type of Retail Store,Grocery Stores/Supermarkets,Tesco Stores 4579,Supplies and Services related expenditure,03/07/2023,1.89,Director of Adult Care
Type of Retail Store,Grocery Stores/Supermarkets,Tesco Stores 6002,Supplies and Services related expenditure,20/09/2023,2.29,"Director of Housing, Neighbourhood and Building Services"
Clothing Services,Family Clothing Stores,Freddies New And Prel,Supplies and Services related expenditure,24/07/2023,3,Director of Public Health
Type of Retail Store,Grocery Stores/Supermarkets,Tesco Stores 4579,Supplies and Services related expenditure,03/07/2023,2.5,"Director of Housing, Neighbourhood and Building Services"
Type of Retail Store,Grocery Stores/Supermarkets,Tesco Stores 6002,Supplies and Services related expenditure,12/08/2023,3.3,Director of Adult Care
Type of Retail Store,Grocery Stores/Supermarkets,Tesco Stores 6002,Supplies and Services related expenditure,26/09/2023,3.99,"Director of Housing, Neighbourhood and Building Services"
Other Supplies,Discount Stores,Poundland Ltd - 1943,Supplies and Services related expenditure,24/07/2023,3.33,Director of Public Health
Other Supplies,Misc Gen Merchandise - Def,B&m 566 - Farlington,Supplies and Services related expenditure,05/07/2023,3.33,"Director of Housing, Neighbourhood and Building Services"
Type of Retail Store,Grocery Stores/Supermarkets,Asda Stores,Supplies and Services related expenditure,26/07/2023,3.37,"Director of Housing, Neighbourhood and Building Services"
Type of Retail Store,Grocery Stores/Supermarkets,Lidl Gb,Supplies and Services related expenditure,26/07/2023,4.19,"Director of Housing, Neighbourhood and Building Services"
Other Supplies,Misc Gen Merchandise - Def,Home Bargains Havant,Supplies and Services related expenditure,20/09/2023,3.72,"Director of Housing, Neighbourhood and Building Services"
Type of Retail Store,Grocery Stores/Supermarkets,Lidl Gb Portsmouth,Supplies and Services related expenditure,04/09/2023,4.76,Director of Public Health
Type of Retail Store,Grocery Stores/Supermarkets,Co-Op Group Food,Supplies and Services related expenditure,19/07/2023,4.78,Director of Public Health
Type of Retail Store,Grocery Stores/Supermarkets,Wm Morrisons Store,Supplies and Services related expenditure,27/09/2023,7.74,Director of Public Health
Type of Retail Store,Grocery Stores/Supermarkets,Tesco Stores 4579,Supplies and Services related expenditure,27/09/2023,7.86,"Director of Housing, Neighbourhood and Building Services"
Type of Retail Store,Grocery Stores/Supermarkets,Lidl Gb,Supplies and Services related expenditure,19/07/2023,8.12,"Director of Housing, Neighbourhood and Building Services"
Type of Retail Store,Grocery Stores/Supermarkets,Tesco Stores 6002,Supplies and Services related expenditure,03/08/2023,8.9,"Director of Housing, Neighbourhood and Building Services"
Type of Retail Store,Grocery Stores/Supermarkets,Lidl Gb,Supplies and Services related expenditure,04/09/2023,9.26,Director of Adult Care
Type of Retail Store,Grocery Stores/Supermarkets,Wm Morrisons Store,Supplies and Services related expenditure,29/09/2023,13.18,Director of Adult Care
Type of Retail Store,Grocery Stores/Supermarkets,Lidl Gb,Supplies and Services related expenditure,05/08/2023,13.2,Director of Adult Care
Type of Retail Store,Grocery Stores/Supermarkets,Sainsburys S/mkt,Supplies and Services related expenditure,05/07/2023,13.44,"Director of Housing, Neighbourhood and Building Services"
Facilities/Repair Supplies,Misc Home Furnishing,The Range,Supplies and Services related expenditure,03/08/2023,11.49,"Director of Housing, Neighbourhood and Building Services"
Other Supplies,Misc Gen Merchandise - Def,B&m Retail Ltd,Supplies and Services related expenditure,04/07/2023,11.87,"Director of Housing, Neighbourhood and Building Services"
Other Supplies,Misc Gen Merchandise - Def,B&m Retail Ltd,Supplies and Services related expenditure,24/07/2023,14.68,Director of Public Health
Type of Retail Store,Grocery Stores/Supermarkets,Asda Stores,Supplies and Services related expenditure,21/09/2023,15.4,Director of Public Health
Type of Retail Store,Grocery Stores/Supermarkets,Lidl Gb,Supplies and Services related expenditure,11/07/2023,13.27,"Director of Housing, Neighbourhood and Building Services"
Type of Retail Store,Grocery Stores/Supermarkets,Lidl Gb,Supplies and Services related expenditure,20/09/2023,16.7,"Director of Housing, Neighbourhood and Building Services"
Type of Retail Store,Grocery Stores/Supermarkets,Tesco Stores 4579,Supplies and Services related expenditure,22/09/2023,17.15,Director of Adult Care
Type of Retail Store,Grocery Stores/Supermarkets,Lidl Gb Portsmouth,Supplies and Services related expenditure,04/07/2023,17.41,"Director of Housing, Neighbourhood and Building Services"
Type of Retail Store,Grocery Stores/Supermarkets,Lidl Gb,Supplies and Services related expenditure,17/07/2023,18.61,Director of Adult Care
Type of Retail Store,Grocery Stores/Supermarkets,Lidl Gb,Supplies and Services related expenditure,31/08/2023,18.61,"Director of Housing, Neighbourhood and Building Services"
Other Supplies,Department Stores,High Street Vouchers,Supplies and Services related expenditure,08/08/2023,20,Director of Public Health
Other Supplies,Department Stores,High Street Vouchers,Supplies and Services related expenditure,08/08/2023,20,Director of Public Health
Other Supplies,Department Stores,High Street Vouchers,Supplies and Services related expenditure,06/09/2023,20,Director of Public Health
Other Supplies,Department Stores,High Street Vouchers,Supplies and Services related expenditure,06/09/2023,20,Director of Public Health
Type of Retail Store,Grocery Stores/Supermarkets,Lidl Gb,Supplies and Services related expenditure,30/07/2023,20.82,Director of Adult Care
Type of Retail Store,Grocery Stores/Supermarkets,Lidl Gb,Supplies and Services related expenditure,07/08/2023,22.04,"Director of Housing, Neighbourhood and Building Services"
Type of Retail Store,Grocery Stores/Supermarkets,Lidl Gb,Supplies and Services related expenditure,28/08/2023,24.88,"Director of Housing, Neighbourhood and Building Services"
Type of Retail Store,Grocery Stores/Supermarkets,Lidl Gb,Supplies and Services related expenditure,18/09/2023,25.29,Director of Adult Care
Type of Retail Store,Grocery Stores/Supermarkets,Lidl Gb Portsmouth,Supplies and Services related expenditure,15/08/2023,25.56,"Director of Housing, Neighbourhood and Building Services"
Type of Retail Store,Grocery Stores/Supermarkets,Tesco Stores 6002,Supplies and Services related expenditure,11/07/2023,26.4,"Director of Housing, Neighbourhood and Building Services"
Type of Retail Store,Grocery Stores/Supermarkets,Tesco Stores 4579,Supplies and Services related expenditure,03/07/2023,26.96,Director of Adult Care
Type of Retail Store,Grocery Stores/Supermarkets,Lidl Gb,Supplies and Services related expenditure,18/09/2023,28.18,"Director of Housing, Neighbourhood and Building Services"
Type of Retail Store,Grocery Stores/Supermarkets,Tesco Stores 4579,Supplies and Services related expenditure,10/07/2023,28.45,Director of Adult Care
Type of Retail Store,Grocery Stores/Supermarkets,Lidl Gb,Supplies and Services related expenditure,22/08/2023,28.47,"Director of Housing, Neighbourhood and Building Services"
Type of Retail Store,Grocery Stores/Supermarkets,Lidl Gb,Supplies and Services related expenditure,14/08/2023,30.05,Director of Adult Care
Facilities/Repair Supplies,Lawn/Garden Supply/Nursery,Hillier Nurseries Limited,Supplies and Services related expenditure,12/07/2023,25.41,"Director of Housing, Neighbourhood and Building Services"
Type of Retail Store,Grocery Stores/Supermarkets,Lidl Gb,Supplies and Services related expenditure,25/07/2023,36.4,"Director of Housing, Neighbourhood and Building Services"
Type of Retail Store,Grocery Stores/Supermarkets,Waitrose 170,Supplies and Services related expenditure,07/09/2023,37.46,"Director of Housing, Neighbourhood and Building Services"
Type of Retail Store,Grocery Stores/Supermarkets,Tesco Stores 6002,Supplies and Services related expenditure,09/08/2023,59.9,"Director of Housing, Neighbourhood and Building Services"
Type of Retail Store,Grocery Stores/Supermarkets,Lidl Gb,Supplies and Services related expenditure,26/09/2023,62.62,"Director of Housing, Neighbourhood and Building Services"
Type of Retail Store,Grocery Stores/Supermarkets,Lidl Gb,Supplies and Services related expenditure,11/07/2023,78.4,"Director of Housing, Neighbourhood and Building Services"
Other Supplies,Gift/Card/Novelty And Souvenir Stores,Card Factory,Supplies and Services related expenditure,15/08/2023,2.15,"Director of Housing, Neighbourhood and Building Services"
Other Supplies,Misc Speciality Retail,Amznmktplace,Supplies and Services related expenditure,20/07/2023,2.49,"Director of Housing, Neighbourhood and Building Services"
Facilities/Repair Supplies,Misc Home Furnishing,The Range,Supplies and Services related expenditure,22/09/2023,3.07,"Director of Housing, Neighbourhood and Building Services"
Facilities/Repair Supplies,Misc Home Furnishing,The Range,Premises related expenditure,25/07/2023,3.87,"Director of Housing, Neighbourhood and Building Services"
Other Supplies,Discount Stores,Poundland Ltd - 1943,Supplies and Services related expenditure,14/08/2023,4.17,"Director of Housing, Neighbourhood and Building Services"
Other Supplies,Misc Speciality Retail,Amznmktplace,Supplies and Services related expenditure,23/07/2023,4.24,"Director of Housing, Neighbourhood and Building Services"
Other Supplies,Misc Speciality Retail,Amznmktplace,Supplies and Services related expenditure,20/07/2023,4.67,"Director of Housing, Neighbourhood and Building Services"
Other Supplies,Misc Speciality Retail,Amznmktplace,Supplies and Services related expenditure,20/07/2023,4.92,"Director of Housing, Neighbourhood and Building Services"
Other Supplies,Misc Speciality Retail,Amznmktplace,Supplies and Services related expenditure,23/07/2023,4.96,"Director of Housing, Neighbourhood and Building Services"
Facilities/Repair Supplies,Misc Home Furnishing,The Range,Supplies and Services related expenditure,25/07/2023,5.23,"Director of Housing, Neighbourhood and Building Services"
Other Supplies,Misc Speciality Retail,Amznmktplace,Supplies and Services related expenditure,23/07/2023,5.82,"Director of Housing, Neighbourhood and Building Services"
Other Supplies,Misc Speciality Retail,Amznmktplace,Supplies and Services related expenditure,23/07/2023,5.82,"Director of Housing, Neighbourhood and Building Services"
Facilities/Repair Supplies,Misc Home Furnishing,The Range,Supplies and Services related expenditure,25/07/2023,5.97,"Director of Housing, Neighbourhood and Building Services"
Other Supplies,Discount Stores,Poundland Ltd - 1311,Supplies and Services related expenditure,10/07/2023,6.87,"Director of Housing, Neighbourhood and Building Services"
Type of Retail Store,Grocery Stores/Supermarkets,Asda Stores,Supplies and Services related expenditure,05/09/2023,10.57,"Director of Housing, Neighbourhood and Building Services"
Type of Retail Store,Grocery Stores/Supermarkets,Asda Stores,Supplies and Services related expenditure,05/09/2023,11.07,"Director of Housing, Neighbourhood and Building Services"
Other Supplies,Misc Speciality Retail,Amznmktplace,Supplies and Services related expenditure,20/07/2023,12.37,"Director of Housing, Neighbourhood and Building Services"
Type of Retail Store,Artist/Craft Shops,Hobbycraft,Supplies and Services related expenditure,04/07/2023,12.92,"Director of Housing, Neighbourhood and Building Services"
Type of Retail Store,Grocery Stores/Supermarkets,Asda Stores,Supplies and Services related expenditure,26/07/2023,29.32,"Director of Housing, Neighbourhood and Building Services"
Other Supplies,Misc Speciality Retail,Timpson Ltd,Supplies and Services related expenditure,17/07/2023,25,"Director of Housing, Neighbourhood and Building Services"
Eating And Drinking Places,Eating Places/Restaurants,Sumup *eastwood Son,Supplies and Services related expenditure,06/07/2023,1.35,Director of Children's Services and Education
Facilities/Repair Supplies,Lumber/Build. Supply Stores,Hg Buildbase Portsmout,Premises related expenditure,05/07/2023,1.92,Director of Children's Services and Education
Eating And Drinking Places,Eating Places/Restaurants,Sumup *eastwood & Son Lt,Supplies and Services related expenditure,06/07/2023,3.2,Director of Children's Services and Education
Amusement/Entertainment,Member Clubs/Sport/Rec/Golf,New Forest Water Park Ltd,Supplies and Services related expenditure,06/07/2023,5,Director of Children's Services and Education
Eating And Drinking Places,Eating Places/Restaurants,Sumup *eastwood Son,Supplies and Services related expenditure,06/07/2023,6.48,Director of Children's Services and Education
Transportation Conveyor,Passenger Railways,Trainline.Com,Transport related expenditure,17/07/2023,-7.5,Director of Children's Services and Education
Transportation Conveyor,Passenger Railways,Trainline.Com,Transport related expenditure,17/07/2023,-7.5,Director of Children's Services and Education
Business To Business Services,Misc Publishing & Printing,Cgp Books,Supplies and Services related expenditure,21/09/2023,9,Director of Children's Services and Education
Eating And Drinking Places,Eating Places/Restaurants,Lake Life,Supplies and Services related expenditure,06/07/2023,11,Director of Children's Services and Education
Type of Retail Store,Grocery Stores/Supermarkets,Booker Ltd - 38536564,Supplies and Services related expenditure,07/07/2023,9.69,Director of Children's Services and Education
Facilities/Repair Supplies,Lumber/Build. Supply Stores,Hg Buildbase Portsmout,Premises related expenditure,03/07/2023,11.2,Director of Children's Services and Education
Clothing Services,Family Clothing Stores,Matalan Ecom,Supplies and Services related expenditure,08/09/2023,15.99,Director of Children's Services and Education
Transportation Conveyor,Passenger Railways,Trainline.Com,Transport related expenditure,07/07/2023,19.75,Director of Children's Services and Education
Transportation Conveyor,Passenger Railways,Trainline.Com,Transport related expenditure,07/07/2023,19.75,Director of Children's Services and Education
Facilities/Repair Supplies,Lumber/Build. Supply Stores,Hg Buildbase Portsmout,Premises related expenditure,03/07/2023,18.91,Director of Children's Services and Education
Facilities/Repair Supplies,Misc Home Furnishing,Paypal,Premises related expenditure,31/08/2023,20.42,Director of Children's Services and Education
Type of Retail Store,Children/Infants Wear Store,Www.Skoolkit.Co.Uk,Supplies and Services related expenditure,29/09/2023,20.58,Director of Children's Services and Education
Government Service,Schools - Default,Nspcc,Employees related expenditure,15/09/2023,25,Director of Children's Services and Education
Facilities/Repair Services,Spec Contractors - Default,Christie Intruder Alar,Premises related expenditure,01/08/2023,22.5,Director of Children's Services and Education
Eating And Drinking Places,Eating Places/Restaurants,Sumup *eastwood & Son Lt,Supplies and Services related expenditure,06/07/2023,25.55,Director of Children's Services and Education
Other Supplies,Misc Speciality Retail,Schuh,Supplies and Services related expenditure,25/09/2023,26.67,Director of Children's Services and Education
Other Supplies,Misc Speciality Retail,Schuh,Supplies and Services related expenditure,25/09/2023,26.67,Director of Children's Services and Education
Eating And Drinking Places,Eating Places/Restaurants,Sumup *eastwood & Son Lt,Supplies and Services related expenditure,06/07/2023,34.08,Director of Children's Services and Education
Facilities/Repair Supplies,Home Supply Warehouse Stores,B & Q 1260,Premises related expenditure,26/09/2023,34.7,Director of Children's Services and Education
Business To Business Services,Misc Publishing & Printing,Cgp Books,Supplies and Services related expenditure,21/09/2023,51.3,Director of Children's Services and Education
Clothing Services,Family Clothing Stores,Footasylum Limited,Supplies and Services related expenditure,07/09/2023,53.98,Director of Children's Services and Education
Clothing Services,Shoe Stores,The Clarks Shop,Supplies and Services related expenditure,06/09/2023,58,Director of Children's Services and Education
Type of Retail Store,Sports/Riding Apparel Store,Sportsdirect.Com,Supplies and Services related expenditure,07/07/2023,58.99,Director of Children's Services and Education
Auto/Vehicle Expenses,Auto Service Shops/Non Dealer,Atlanta Garage Ltd,Transport related expenditure,21/07/2023,59.55,Director of Children's Services and Education
Clothing Services,Shoe Stores,Deichmann Se 0124,Supplies and Services related expenditure,06/09/2023,50.15,Director of Children's Services and Education
Type of Retail Store,Sports/Riding Apparel Store,Sportsdirect.Com,Supplies and Services related expenditure,08/09/2023,65.98,Director of Children's Services and Education
Eating And Drinking Places,Eating Places/Restaurants,Lake Life,Supplies and Services related expenditure,06/07/2023,68.8,Director of Children's Services and Education
Automobile Services & Supplies,Service Stations,Tesco Pfs 2339,Transport related expenditure,03/07/2023,66.67,Director of Children's Services and Education
Other Supplies,Department Stores,Safetysuppl,Supplies and Services related expenditure,27/07/2023,69.82,Director of Children's Services and Education
Type of Retail Store,Grocery Stores/Supermarkets,Booker Ltd - 38536564,Supplies and Services related expenditure,07/07/2023,89.1,Director of Children's Services and Education
Clothing Services,Shoe Stores,Courtesy Shoes Ltd,Supplies and Services related expenditure,07/09/2023,77.46,Director of Children's Services and Education
Type of Retail Store,Grocery Stores/Supermarkets,Tu At Sainsburys,Supplies and Services related expenditure,07/09/2023,100.95,Director of Children's Services and Education
Amusement/Entertainment,Member Clubs/Sport/Rec/Golf,Snowsport England,Employees related expenditure,19/09/2023,110,Director of Children's Services and Education
Facilities/Repair Supplies,Hardware Stores,Brewers Pompey Centre,Premises related expenditure,27/07/2023,92.79,Director of Children's Services and Education
Other Supplies,Misc Speciality Retail,Zettle_*amberley Stores L,Premises related expenditure,31/07/2023,102.5,Director of Children's Services and Education
Facilities/Repair Supplies,Hardware Stores,Brewers Pompey Centre,Premises related expenditure,15/08/2023,111.64,Director of Children's Services and Education
Other Supplies,Misc Speciality Retail,Zettle_*amberley Store,Premises related expenditure,26/09/2023,114.58,Director of Children's Services and Education
Other Supplies,Misc Speciality Retail,Better Equipped,Supplies and Services related expenditure,25/09/2023,133.69,Director of Children's Services and Education
Facilities/Repair Supplies,Home Supply Warehouse Stores,B & Q 1260,Premises related expenditure,15/08/2023,133.86,Director of Children's Services and Education
Facilities/Repair Supplies,Home Supply Warehouse Stores,B & Q 1260,Premises related expenditure,08/08/2023,164.26,Director of Children's Services and Education
Facilities/Repair Supplies,Lumber/Build. Supply Stores,Hg Buildbase Portsmout,Premises related expenditure,13/07/2023,167.2,Director of Children's Services and Education
Facilities/Repair Supplies,Lumber/Build. Supply Stores,General All Purpose Pl,Premises related expenditure,03/08/2023,198.2,Director of Children's Services and Education
Other Supplies,Misc Speciality Retail,Zettle_*amberley Stores L,Premises related expenditure,05/07/2023,200.83,Director of Children's Services and Education
Eating And Drinking Places,Eating Places/Restaurants,Casa Brasil Portsmouth,Supplies and Services related expenditure,06/07/2023,206.22,Director of Children's Services and Education
Clothing Services,Family Clothing Stores,Primark,Supplies and Services related expenditure,06/09/2023,267.4,Director of Children's Services and Education
Business Services,Business Services - Default,Eb *portsmouth Inclusi,Employees related expenditure,15/09/2023,300,Director of Children's Services and Education
Facilities/Repair Supplies,Lumber/Build. Supply Stores,Www.Screwfix.Com,Premises related expenditure,22/09/2023,261.37,Director of Children's Services and Education
Facilities/Repair Supplies,Lumber/Build. Supply Stores,C Brewer & Sons,Premises related expenditure,02/08/2023,335.17,Director of Children's Services and Education
Clothing Services,Shoe Stores,Shoe Zone (Internet),Supplies and Services related expenditure,08/09/2023,368.14,Director of Children's Services and Education
Facilities/Repair Supplies,Lumber/Build. Supply Stores,Hg Hirebase Portsmouth,Premises related expenditure,21/09/2023,487.5,Director of Children's Services and Education
Clothing Services,Shoe Stores,Shoe Zone (Internet),Supplies and Services related expenditure,05/09/2023,501.41,Director of Children's Services and Education
Type of Retail Store,Grocery Stores/Supermarkets,Booker Ltd - 38536564,Supplies and Services related expenditure,07/07/2023,697.3,Director of Children's Services and Education
Facilities/Repair Supplies,Lumber/Build. Supply Stores,Www.Screwfix.Com,Premises related expenditure,24/08/2023,759.69,Director of Children's Services and Education
Business To Business Eqpt/Furn,Book Stores,Browns Books,Supplies and Services related expenditure,12/09/2023,1118,Director of Children's Services and Education
Government Service,Govt Serv - Default,C2e860800144l Ukvi,Supplies and Services related expenditure,26/07/2023,1199,Director of Children's Services and Education
Eating And Drinking Places,Fast Food Restaurants,Sq *d-Day Cafe,Supplies and Services related expenditure,21/07/2023,5.42,"Director of Culture, Leisure & Regulatory Services"
Other Supplies,Misc Gen Merchandise - Def,Wilko Retail Limited,Supplies and Services related expenditure,20/07/2023,5.83,"Director of Culture, Leisure & Regulatory Services"
Eating And Drinking Places,Fast Food Restaurants,Sq *d-Day Cafe,Supplies and Services related expenditure,04/08/2023,5.83,"Director of Culture, Leisure & Regulatory Services"
Eating And Drinking Places,Fast Food Restaurants,Starbucks,Supplies and Services related expenditure,28/09/2023,9.4,"Director of Culture, Leisure & Regulatory Services"
Amusement/Entertainment,Amusement/Rec Serv - Def,Sq *south Coast Wakepark,Supplies and Services related expenditure,04/07/2023,12.2,"Director of Culture, Leisure & Regulatory Services"
Transportation Conveyor,Passenger Railways,Swrailwayselfserve,Transport related expenditure,28/09/2023,19.3,"Director of Culture, Leisure & Regulatory Services"
Eating And Drinking Places,Fast Food Restaurants,Sq *d-Day Cafe,Supplies and Services related expenditure,04/08/2023,17.08,"Director of Culture, Leisure & Regulatory Services"
Automobile Services & Supplies,Service Stations,Tesco Pfs 2339,Premises related expenditure,13/09/2023,3.6,"Director of Culture, Leisure & Regulatory Services"
Government Service,Govt Serv - Default,Immigration Canada Online,Supplies and Services related expenditure,20/07/2023,4.26,Solent LEP
Business Services,Business Services - Default,Www.Labevents.Org,Supplies and Services related expenditure,28/07/2023,5,Solent LEP
Type of Retail Store,Grocery Stores/Supermarkets,Sainsburys S/mkts,Supplies and Services related expenditure,22/08/2023,7.4,"Director of Culture, Leisure & Regulatory Services"
Type of Retail Store,Grocery Stores/Supermarkets,Sainsburys S/mkts,Supplies and Services related expenditure,22/08/2023,6.71,"Director of Culture, Leisure & Regulatory Services"
Transportation Conveyor,Passenger Railways,Ringo Ecom,Transport related expenditure,12/09/2023,7.08,Solent LEP
Miscellaneous,Member Organizations - Def,National World,Supplies and Services related expenditure,24/07/2023,10.99,"Director of Culture, Leisure & Regulatory Services"
Miscellaneous,Member Organizations - Def,National World,Supplies and Services related expenditure,24/08/2023,10.99,"Director of Culture, Leisure & Regulatory Services"
Miscellaneous,Member Organizations - Def,National World,Supplies and Services related expenditure,24/09/2023,10.99,"Director of Culture, Leisure & Regulatory Services"
Business To Business Eqpt/Furn,Stationery/Office Supplies,Www.Banneruk.Com,Premises related expenditure,25/07/2023,11.74,"Director of Culture, Leisure & Regulatory Services"
Auto/Vehicle Expenses,Toll And Bridge Fees,Tfl Business Bops Web,Supplies and Services related expenditure,07/07/2023,15,"Director of Culture, Leisure & Regulatory Services"
Transportation Conveyor,Passenger Railways,Ringo Ecom,Transport related expenditure,04/07/2023,14.42,Solent LEP
Transportation Conveyor,Passenger Railways,Ringo Ecom,Transport related expenditure,11/09/2023,14.42,Solent LEP
Transportation Conveyor,Passenger Railways,Ringo Ecom,Transport related expenditure,13/09/2023,14.42,Solent LEP
Transportation Conveyor,Passenger Railways,Ringo Ecom,Transport related expenditure,14/09/2023,14.42,Solent LEP
Business To Business Eqpt/Furn,Stationery/Office Supplies,Www.Banneruk.Com,Supplies and Services related expenditure,17/07/2023,20.8,"Director of Culture, Leisure & Regulatory Services"
Caterers Food,Caterers,Alliance Disposables,Supplies and Services related expenditure,30/08/2023,35.07,"Director of Culture, Leisure & Regulatory Services"
Business To Business Eqpt/Furn,Stationery/Office Supplies,Www.Banneruk.Com,Supplies and Services related expenditure,17/07/2023,40.03,"Director of Culture, Leisure & Regulatory Services"
Other Supplies,Misc Gen Merchandise - Def,Carol Moore Florist,Supplies and Services related expenditure,18/07/2023,45,"Director of Culture, Leisure & Regulatory Services"
Eating And Drinking Places,Eating Places/Restaurants,Sumup *sweet Cakes By Ba,Supplies and Services related expenditure,22/09/2023,50,"Director of Culture, Leisure & Regulatory Services"
Transportation Conveyor,"Parking Lots, Meters, Garages",Q Park Online Sales Uk,Transport related expenditure,07/07/2023,45.83,"Director of Culture, Leisure & Regulatory Services"
Transportation Conveyor,Passenger Railways,Swrailwayselfserve,Transport related expenditure,04/07/2023,55.2,Solent LEP
Transportation Conveyor,Passenger Railways,Swrailway Tck Off,Transport related expenditure,12/09/2023,61.2,Solent LEP
Hotels And Motels,Premier Travel Inns,Premier Inn,Supplies and Services related expenditure,19/09/2023,62.07,Solent LEP
Transportation Conveyor,Passenger Railways,Trainline,Transport related expenditure,12/09/2023,105,Solent LEP
Transportation Conveyor,Passenger Railways,Trainline,Transport related expenditure,12/09/2023,105,Solent LEP
Transportation Conveyor,Passenger Railways,Swrailway Tck Off,Transport related expenditure,11/09/2023,108.5,Solent LEP
Caterers Food,Caterers,Alliance Disposables,Supplies and Services related expenditure,06/09/2023,97.67,"Director of Culture, Leisure & Regulatory Services"
Caterers Food,Caterers,Alliance Disposables,Supplies and Services related expenditure,31/08/2023,167.9,"Director of Culture, Leisure & Regulatory Services"
Clothing/Uniform Services,Tailor/Seamstress/Alters,Ede & Ravenscroft,Supplies and Services related expenditure,12/07/2023,232.5,"Director of Culture, Leisure & Regulatory Services"
Miscellaneous,Member Organizations - Def,Assoc Of Corp Treas,Supplies and Services related expenditure,26/07/2023,125,Director of Finance & Resources
Eating And Drinking Places,Eating Places/Restaurants,Sumup *landport Cc,Supplies and Services related expenditure,25/07/2023,1.17,Director of Children's Services and Education
Transportation Conveyor,Local Commuter Transport,Tfl Travel Ch,Transport related expenditure,31/07/2023,1.75,Director of Children's Services and Education
Type of Retail Store,Grocery Stores/Supermarkets,Lidl Gb Havant,Supplies and Services related expenditure,30/08/2023,1.58,Director of Children's Services and Education
Transportation Conveyor,"Parking Lots, Meters, Garages",Queen Alexandra Hospit,Transport related expenditure,28/09/2023,1.67,Director of Children's Services and Education
Transportation Conveyor,"Parking Lots, Meters, Garages",Queen Alexandra Hospit,Transport related expenditure,28/09/2023,1.67,Director of Children's Services and Education
Transportation Conveyor,"Parking Lots, Meters, Garages",Portsmouth City Council 3,Supplies and Services related expenditure,04/08/2023,2.42,Director of Children's Services and Education
Transportation Conveyor,"Parking Lots, Meters, Garages",Portsmouth City Council 3,Transport related expenditure,22/08/2023,2.42,Director of Children's Services and Education
Transportation Conveyor,"Parking Lots, Meters, Garages",Havant Borough Council,Supplies and Services related expenditure,14/07/2023,3.4,Director of Children's Services and Education
Business Expenses/Services,Postage Stamps,Post Office Counter,Supplies and Services related expenditure,29/09/2023,3.12,Director of Children's Services and Education
Caterers Food,Caterers,Medirest Costa,Supplies and Services related expenditure,28/09/2023,3.96,Director of Children's Services and Education
Eating And Drinking Places,Eating Places/Restaurants,Greggs Plc,Supplies and Services related expenditure,25/07/2023,4.46,Director of Children's Services and Education
Eating And Drinking Places,Eating Places/Restaurants,Burger King,Supplies and Services related expenditure,23/08/2023,4.49,Director of Children's Services and Education
Eating And Drinking Places,Fast Food Restaurants,Costa Coffee 43011066,Supplies and Services related expenditure,27/09/2023,4.67,Director of Children's Services and Education
Business Expenses/Services,Postage Stamps,Post Office Counter,Supplies and Services related expenditure,29/08/2023,5.71,Director of Children's Services and Education
Eating And Drinking Places,Fast Food Restaurants,Costa Coffee 43010414,Supplies and Services related expenditure,21/08/2023,6.25,Director of Children's Services and Education
Business Services,Photofinish Labs/Dev,Me Group International Pl,Supplies and Services related expenditure,25/07/2023,7.5,Director of Children's Services and Education
Business Services,Photofinish Labs/Dev,Me Group International Pl,Supplies and Services related expenditure,23/08/2023,7.5,Director of Children's Services and Education
Transportation Conveyor,Passenger Railways,Trainline,Transport related expenditure,21/07/2023,10.86,Director of Children's Services and Education
Transportation Conveyor,Passenger Railways,Trainline,Transport related expenditure,13/07/2023,15.17,Director of Children's Services and Education
Transportation Conveyor,Passenger Railways,Trainline,Transport related expenditure,15/09/2023,19.93,Director of Children's Services and Education
Type of Retail Store,Drug Stores & Pharmacies,Lalys Chemist,Supplies and Services related expenditure,07/08/2023,24.12,Director of Children's Services and Education
Transportation Conveyor,Passenger Railways,Trainline,Transport related expenditure,10/08/2023,25.45,Director of Children's Services and Education
Other Supplies,Department Stores,Www.Argos.Co.Uk,Supplies and Services related expenditure,26/07/2023,27.46,Director of Children's Services and Education
Equipment And Furniture,Furniture/Equip Stores,Rugs Direct Online Limite,Supplies and Services related expenditure,27/07/2023,37.49,Director of Children's Services and Education
Government Service,Govt Serv - Default,Hm Passport Office,Supplies and Services related expenditure,25/07/2023,82.5,Director of Children's Services and Education
Government Service,Govt Serv - Default,Hm Passport Office,Supplies and Services related expenditure,23/08/2023,68.75,Director of Children's Services and Education
Clothing Services,Family Clothing Stores,Footasylum Limited,Supplies and Services related expenditure,27/09/2023,-74.97,Director of Children's Services and Education
Clothing Services,Family Clothing Stores,Primark,Supplies and Services related expenditure,27/07/2023,86.67,Director of Children's Services and Education
Clothing Services,Family Clothing Stores,Footasylum Limited,Supplies and Services related expenditure,27/09/2023,124.96,Director of Children's Services and Education
Clothing Services,Family Clothing Stores,Primark,Supplies and Services related expenditure,23/08/2023,126.83,Director of Children's Services and Education
Equipment And Furniture,Furniture/Equip Stores,Wf *uk3965235474,Supplies and Services related expenditure,13/09/2023,137.48,Director of Children's Services and Education
Government Service,Govt Serv - Default,Portsmouth City Co,Transport related expenditure,18/08/2023,3.83,"Director of Housing, Neighbourhood and Building Services"
Government Service,Govt Serv - Default,Portsmouth City Co,Transport related expenditure,14/09/2023,6.83,"Director of Housing, Neighbourhood and Building Services"
Government Service,Govt Serv - Default,Portsmouth City Co,Transport related expenditure,11/07/2023,10.33,"Director of Housing, Neighbourhood and Building Services"
Government Service,Govt Serv - Default,Portsmouth City Co,Transport related expenditure,16/08/2023,10.33,"Director of Housing, Neighbourhood and Building Services"
Business Expenses/Services,Postage Stamps,Post Office Counter,Supplies and Services related expenditure,20/07/2023,26.8,"Director of Housing, Neighbourhood and Building Services"
Transportation Conveyor,"Parking Lots, Meters, Garages",Mipermit,Supplies and Services related expenditure,04/09/2023,1.1,Director of Finance & Resources
Business Expenses/Services,Postage Stamps,Post Office Counter,Supplies and Services related expenditure,07/08/2023,8.65,Director of Finance & Resources
Transportation Conveyor,Local Commuter Transport,Gosport Ferry Limited,Transport related expenditure,15/09/2023,9.6,Director of Finance & Resources
Transportation Conveyor,Local Commuter Transport,Www.Wightlink.Co.Uk,Transport related expenditure,09/08/2023,-72.62,Director of Finance & Resources
Transportation Conveyor,Local Commuter Transport,Www.Wightlink.Co.Uk,Transport related expenditure,09/08/2023,77.62,Director of Finance & Resources
Transportation Conveyor,Local Commuter Transport,Www.Wightlink.Co.Uk,Transport related expenditure,30/08/2023,82.5,Director of Finance & Resources
Miscellaneous,Member Organizations - Def,Govnet Events,Supplies and Services related expenditure,27/09/2023,345,Director of Finance & Resources
Automobile Services & Supplies,Service Stations,Tesco Pfs 2175,Transport related expenditure,04/08/2023,1.25,Director of Children's Services and Education
Transportation Conveyor,"Parking Lots, Meters, Garages",Fareham Bc Pof,Transport related expenditure,04/09/2023,1.25,Director of Children's Services and Education
Transportation Conveyor,"Parking Lots, Meters, Garages",Total Parking Solution,Transport related expenditure,11/09/2023,1.25,Director of Children's Services and Education
Eating And Drinking Places,Eating Places/Restaurants,McDonalds,Supplies and Services related expenditure,11/09/2023,1.99,Director of Children's Services and Education
Transportation Conveyor,Passenger Railways,Swrailwayselfserve,Transport related expenditure,25/07/2023,1.67,Director of Children's Services and Education
Other Supplies,Discount Stores,The Works,Supplies and Services related expenditure,16/08/2023,2.5,Director of Children's Services and Education
Eating And Drinking Places,Eating Places/Restaurants,McDonalds,Supplies and Services related expenditure,10/07/2023,2.57,Director of Children's Services and Education
Transportation Conveyor,"Parking Lots, Meters, Garages",Portsmouth Park And Ride,Transport related expenditure,02/08/2023,3.2,Director of Children's Services and Education
Automobile Services & Supplies,Service Stations,Tesco Pfs 3054,Transport related expenditure,13/07/2023,2.83,Director of Children's Services and Education
Amusement/Entertainment,Amusement Parks/Circus,Goals Portsmouth Bar,Supplies and Services related expenditure,25/08/2023,3.5,Director of Children's Services and Education
Eating And Drinking Places,Eating Places/Restaurants,McDonalds,Supplies and Services related expenditure,12/09/2023,4.78,Director of Children's Services and Education
Eating And Drinking Places,Eating Places/Restaurants,The Tenth Hole Tea Roo,Supplies and Services related expenditure,26/07/2023,4.67,Director of Children's Services and Education
Eating And Drinking Places,Eating Places/Restaurants,McDonalds,Supplies and Services related expenditure,13/09/2023,5.67,Director of Children's Services and Education
Auto/Vehicle Expenses,Toll And Bridge Fees,M6 Toll,Transport related expenditure,23/08/2023,4.83,Director of Children's Services and Education
Eating And Drinking Places,Eating Places/Restaurants,The Tenth Hole Tea Roo,Supplies and Services related expenditure,26/07/2023,5.67,Director of Children's Services and Education
Eating And Drinking Places,Eating Places/Restaurants,McDonalds,Supplies and Services related expenditure,11/09/2023,7.09,Director of Children's Services and Education
Eating And Drinking Places,Fast Food Restaurants,McDonalds 166,Supplies and Services related expenditure,04/09/2023,7.88,Director of Children's Services and Education
Eating And Drinking Places,Eating Places/Restaurants,The Tenth Hole Tea Roo,Supplies and Services related expenditure,26/07/2023,11.67,Director of Children's Services and Education
Eating And Drinking Places,Eating Places/Restaurants,McDonalds,Supplies and Services related expenditure,10/07/2023,11.97,Director of Children's Services and Education
Amusement/Entertainment,Commercial/Pro Sports,Goals Portsmouth - Recept,Supplies and Services related expenditure,25/08/2023,12.5,Director of Children's Services and Education
Type of Retail Store,Grocery Stores/Supermarkets,Sainsburys S/mkts,Supplies and Services related expenditure,05/09/2023,20,Director of Children's Services and Education
Amusement/Entertainment,Member Clubs/Sport/Rec/Golf,Hollywood Bowl,Supplies and Services related expenditure,25/09/2023,26.98,Director of Children's Services and Education
Other Supplies,Department Stores,Www.Argos.Co.Uk,Supplies and Services related expenditure,08/09/2023,29.99,Director of Children's Services and Education
Other Supplies,Discount Stores,Argos 4801 Portswood,Supplies and Services related expenditure,26/07/2023,54.17,Director of Children's Services and Education
Transportation Conveyor,Passenger Railways,Trainline,Transport related expenditure,05/09/2023,165.67,Director of Children's Services and Education
Other Supplies,Misc Speciality Retail,Amznmktplace,Supplies and Services related expenditure,01/07/2023,10.4,"Director of Housing, Neighbourhood and Building Services"
Other Supplies,Misc Speciality Retail,Amznmktplace,Supplies and Services related expenditure,01/07/2023,15.83,"Director of Housing, Neighbourhood and Building Services"
Other Supplies,Misc Speciality Retail,Amznmktplace,Supplies and Services related expenditure,02/07/2023,22.71,"Director of Housing, Neighbourhood and Building Services"
Other Supplies,Misc Speciality Retail,Amznbusiness,Supplies and Services related expenditure,17/09/2023,24.45,Director of Adult Care
Business To Business Eqpt/Furn,Computer Software Stores,Sourcegear Dba Zumero,Supplies and Services related expenditure,18/07/2023,497.05,Director of Corporate Services
Business To Business Eqpt/Furn,Computer Software Stores,Dri*,Supplies and Services related expenditure,11/09/2023,566.66,Director of Children's Services and Education
Business Expenses/Services,Florists,Zodiac Florist,Supplies and Services related expenditure,31/07/2023,32,Director of Children's Services and Education
Government Service,Govt Serv - Default,Portsmouth City Co,Transport related expenditure,09/08/2023,38,Director of Children's Services and Education
Eating And Drinking Places,Pkg Stores/Beer/Wine/Liquor,New Kwikimart,Supplies and Services related expenditure,05/09/2023,2.45,"Director of Housing, Neighbourhood and Building Services"
Type of Retail Store,Grocery Stores/Supermarkets,Tesco Stores 6577,Supplies and Services related expenditure,07/09/2023,3.62,"Director of Housing, Neighbourhood and Building Services"
Professional Services,Mgmt/Consult/Public Rel Ser,Get Licensed,Supplies and Services related expenditure,07/09/2023,10,"Director of Housing, Neighbourhood and Building Services"
Business To Business Services,Misc Publishing & Printing,Www.Solopress.Com,Supplies and Services related expenditure,08/09/2023,42.33,"Director of Housing, Neighbourhood and Building Services"
Government Service,Govt Serv - Default,Security Industry Auth,Supplies and Services related expenditure,06/09/2023,184,"Director of Housing, Neighbourhood and Building Services"
Professional Services,Mgmt/Consult/Public Rel Ser,Get Licensed,Supplies and Services related expenditure,10/08/2023,388.99,"Director of Housing, Neighbourhood and Building Services"
Type of Retail Store,Grocery Stores/Supermarkets,Tesco Stores 4611,Supplies and Services related expenditure,10/09/2023,5.29,Director of Regeneration
Type of Retail Store,Grocery Stores/Supermarkets,Tesco Stores 4611,Supplies and Services related expenditure,14/09/2023,6.75,Director of Regeneration
Auto/Vehicle Expenses,Car Washes,Hilsea Hand Carwash,Transport related expenditure,23/08/2023,10,Director of Regeneration
Auto/Vehicle Expenses,Car Washes,Hilsea Hand Carwash,Transport related expenditure,29/09/2023,10,Director of Regeneration
Facilities/Repair Supplies,Home Supply Warehouse Stores,B & Q 1260,Supplies and Services related expenditure,18/08/2023,15.58,Director of Regeneration
Auto/Vehicle Expenses,Car Washes,Hilsea Hand Carwash,Transport related expenditure,02/09/2023,23,Director of Regeneration
Auto/Vehicle Expenses,Car Washes,Hilsea Hand Carwash,Transport related expenditure,24/08/2023,28,Director of Regeneration
Auto/Vehicle Expenses,Car Washes,Hilsea Hand Carwash,Transport related expenditure,25/08/2023,28,Director of Regeneration
Automobile Services & Supplies,Service Stations,Shell Farlignton,Transport related expenditure,27/08/2023,42.05,Director of Regeneration
Auto/Vehicle Expenses,Car Washes,Hilsea Hand Carwash,Transport related expenditure,22/07/2023,48,Director of Regeneration
Auto/Vehicle Expenses,Car Washes,Hilsea Hand Carwash,Transport related expenditure,24/08/2023,56,Director of Regeneration
Automobile Services & Supplies,Service Stations,Shell Fratton 178,Transport related expenditure,07/09/2023,47.09,Director of Regeneration
Clothing Services,Family Clothing Stores,Cottontraders.Com Gb,Transport related expenditure,23/09/2023,49.99,Director of Regeneration
Auto/Vehicle Expenses,Car Washes,Hilsea Hand Carwash,Transport related expenditure,22/07/2023,73,Director of Regeneration
Clothing Services,Shoe Stores,Sp Magnum-Footsure,Supplies and Services related expenditure,29/08/2023,87.5,Director of Regeneration
Government Service,Vocational/Trade Schools,Novadata Tachograph An,Transport related expenditure,10/09/2023,183.95,Director of Regeneration
Business To Business Facility/,Hardware Equipment/Supplies,Croma Locksmiths & Sec,Supplies and Services related expenditure,24/07/2023,259.95,Director of Regeneration
Government Service,Govt Serv - Default,Land Registry Ecom Ccc,Supplies and Services related expenditure,18/07/2023,3,"Director of Housing, Neighbourhood and Building Services"
Government Service,Govt Serv - Default,Land Registry Ecom Ccc,Supplies and Services related expenditure,01/08/2023,3,"Director of Housing, Neighbourhood and Building Services"
Other Supplies,Misc Speciality Retail,Amznmktplace,Supplies and Services related expenditure,14/09/2023,3.87,Director of Children's Services and Education
Transportation Conveyor,Passenger Railways,Trainline,Transport related expenditure,31/08/2023,4.78,"Director of Housing, Neighbourhood and Building Services"
Transportation Conveyor,Passenger Railways,Trainline,Transport related expenditure,31/08/2023,4.78,"Director of Housing, Neighbourhood and Building Services"
Type of Retail Store,Grocery Stores/Supermarkets,Lidl Gb Portsmouth,Supplies and Services related expenditure,04/08/2023,4.17,Director of Children's Services and Education
Other Supplies,Misc Speciality Retail,Amznmktplace,Supplies and Services related expenditure,12/09/2023,4.37,Director of Children's Services and Education
Transportation Conveyor,Passenger Railways,Trainline,Transport related expenditure,23/08/2023,6.81,"Director of Housing, Neighbourhood and Building Services"
Facilities Maintenance,Clean/Maint/Janitoral Serv,Wsm Credit Control,Supplies and Services related expenditure,30/08/2023,5.76,Director of Children's Services and Education
Hotels And Motels,Premier Travel Inns,Premier Inn,Agency and Third Party Payments related expenditure,28/07/2023,-6.66,"Director of Housing, Neighbourhood and Building Services"
Business Services,Business Services - Default,Fast Key Services Limited,Supplies and Services related expenditure,26/09/2023,6.73,Director of Children's Services and Education
Other Supplies,Misc Speciality Retail,Amznmktplace,Supplies and Services related expenditure,14/09/2023,9.07,Director of Children's Services and Education
Type of Retail Store,Grocery Stores/Supermarkets,Tesco Stores 4611,Supplies and Services related expenditure,26/09/2023,13.9,Director of Public Health
Facilities Maintenance,Clean/Maint/Janitoral Serv,Wsm Credit Control,Supplies and Services related expenditure,30/08/2023,12.96,Director of Children's Services and Education
Other Supplies,Misc Speciality Retail,Amznmktplace,Supplies and Services related expenditure,13/09/2023,19.87,Director of Children's Services and Education
Other Supplies,Misc Speciality Retail,Amznmktplace,Supplies and Services related expenditure,13/09/2023,23.99,Director of Children's Services and Education
Other Supplies,Misc Speciality Retail,Amznmktplace,Supplies and Services related expenditure,13/09/2023,21.58,Director of Children's Services and Education
Hotels And Motels,Lodging/Hotels/Motels/Resorts,Farmhouse (Portsmouth),Supplies and Services related expenditure,08/09/2023,27,"Director of Housing, Neighbourhood and Building Services"
Hotels And Motels,Lodging/Hotels/Motels/Resorts,Farmhouse (Portsmouth),Supplies and Services related expenditure,07/09/2023,27.98,"Director of Housing, Neighbourhood and Building Services"
Equipment And Furniture,Phone Serv/Equip Non-Util,Amazon* 206-3030829-43,Supplies and Services related expenditure,14/09/2023,24.57,Director of Children's Services and Education
Equipment And Furniture,Phone Serv/Equip Non-Util,Amazon* 206-3030829-43,Supplies and Services related expenditure,14/09/2023,24.57,Director of Children's Services and Education
Other Supplies,Misc Speciality Retail,Amznmktplace,Supplies and Services related expenditure,13/09/2023,34.68,Director of Children's Services and Education
Freight/Courier/Warehouse Svcs,Motor Freight Carriers,Safestore Ltd Online R,Premises related expenditure,08/09/2023,35.37,"Director of Housing, Neighbourhood and Building Services"
Type of Retail Store,Misc Food Stores - Default,Premier Fresh & Local,Premises related expenditure,19/07/2023,50,"Director of Housing, Neighbourhood and Building Services"
Type of Retail Store,Misc Food Stores - Default,Premier Fresh & Local,Premises related expenditure,19/07/2023,50,"Director of Housing, Neighbourhood and Building Services"
Freight/Courier/Warehouse Svcs,Public Warehousing,Access Portsmouth,Premises related expenditure,29/08/2023,45.83,"Director of Housing, Neighbourhood and Building Services"
Transportation Conveyor,Passenger Railways,Trainline,Supplies and Services related expenditure,26/09/2023,62.47,Director of Children's Services and Education
Government Service,Govt Serv - Default,Portsmouth City Co,Supplies and Services related expenditure,18/09/2023,63.33,Director of Children's Services and Education
Government Service,Govt Serv - Default,Portsmouth City Co,Supplies and Services related expenditure,19/09/2023,63.33,Director of Children's Services and Education
Transportation Conveyor,Travel Agencies,Bkg*hotel At Booking.C,Agency and Third Party Payments related expenditure,12/09/2023,89.58,"Director of Housing, Neighbourhood and Building Services"
Hotels And Motels,Premier Travel Inns,Premier Inn,Agency and Third Party Payments related expenditure,27/07/2023,93.74,"Director of Housing, Neighbourhood and Building Services"
Freight/Courier/Warehouse Svcs,Public Warehousing,Www.Bigyellow.Co.Uk,Premises related expenditure,10/08/2023,114,"Director of Housing, Neighbourhood and Building Services"
Transportation Conveyor,Travel Agencies,Bkg*hotel At Booking.C,Supplies and Services related expenditure,07/09/2023,128.69,"Director of Housing, Neighbourhood and Building Services"
Transportation Conveyor,Travel Agencies,Bkg*hotel At Booking.C,Supplies and Services related expenditure,07/09/2023,128.69,"Director of Housing, Neighbourhood and Building Services"
Freight/Courier/Warehouse Svcs,Motor Freight Carriers,Safestore Ltd Online R,Premises related expenditure,23/08/2023,140.32,"Director of Housing, Neighbourhood and Building Services"
Freight/Courier/Warehouse Svcs,Motor Freight Carriers,Safestore Ltd Online R,Agency and Third Party Payments related expenditure,20/09/2023,152.95,"Director of Housing, Neighbourhood and Building Services"
Hotels And Motels,Hotel Ibis,Hotel Ibis,Agency and Third Party Payments related expenditure,13/07/2023,165.83,"Director of Housing, Neighbourhood and Building Services"
Freight/Courier/Warehouse Svcs,Motor Freight Carriers,Safestore Ltd Online R,Premises related expenditure,07/09/2023,181.56,"Director of Housing, Neighbourhood and Building Services"
Freight/Courier/Warehouse Svcs,Motor Freight Carriers,Safestore Ltd Online R,Premises related expenditure,18/07/2023,203.74,"Director of Housing, Neighbourhood and Building Services"
Freight/Courier/Warehouse Svcs,Motor Freight Carriers,Safestore Ltd Online R,Premises related expenditure,23/08/2023,213.32,"Director of Housing, Neighbourhood and Building Services"
Freight/Courier/Warehouse Svcs,Motor Freight Carriers,Safestore Ltd Online R,Premises related expenditure,19/09/2023,213.32,"Director of Housing, Neighbourhood and Building Services"
Freight/Courier/Warehouse Svcs,Public Warehousing,Access Portsmouth,Premises related expenditure,12/09/2023,233.33,"Director of Housing, Neighbourhood and Building Services"
Hotels And Motels,Premier Travel Inns,Premier Inn,Agency and Third Party Payments related expenditure,15/08/2023,237.48,"Director of Housing, Neighbourhood and Building Services"
Freight/Courier/Warehouse Svcs,Public Warehousing,Access Portsmouth,Premises related expenditure,12/07/2023,241.67,"Director of Housing, Neighbourhood and Building Services"
Transportation Conveyor,Travel Agencies,Bkg*hotel At Booking.C,Supplies and Services related expenditure,07/09/2023,243.33,"Director of Housing, Neighbourhood and Building Services"
Freight/Courier/Warehouse Svcs,Public Warehousing,Big Yellow - Portsmout,Premises related expenditure,14/09/2023,248.67,"Director of Housing, Neighbourhood and Building Services"
Freight/Courier/Warehouse Svcs,Public Warehousing,Big Yellow - Portsmout,Agency and Third Party Payments related expenditure,22/09/2023,355.83,"Director of Housing, Neighbourhood and Building Services"
Equipment And Furniture,Furniture/Equip Stores,Ikea Ltd Shop Online,Supplies and Services related expenditure,18/09/2023,371.46,Director of Public Health
Hotels And Motels,Premier Travel Inns,Premier Inn,Agency and Third Party Payments related expenditure,25/08/2023,-372.48,"Director of Housing, Neighbourhood and Building Services"
Hotels And Motels,Travelodge,Travelodge Gb0000,Agency and Third Party Payments related expenditure,19/09/2023,449.23,"Director of Housing, Neighbourhood and Building Services"
Transportation Conveyor,Travel Agencies,Bkg*hotel At Booking.C,Agency and Third Party Payments related expenditure,19/09/2023,468.75,"Director of Housing, Neighbourhood and Building Services"
Transportation Conveyor,Travel Agencies,Bkg*hotel At Booking.C,Agency and Third Party Payments related expenditure,19/09/2023,477.08,"Director of Housing, Neighbourhood and Building Services"
Transportation Conveyor,Travel Agencies,Bkg*hotel At Booking.C,Agency and Third Party Payments related expenditure,19/09/2023,518.33,"Director of Housing, Neighbourhood and Building Services"
Transportation Conveyor,Travel Agencies,Bkg*hotel At Booking.C,Agency and Third Party Payments related expenditure,19/09/2023,527.08,"Director of Housing, Neighbourhood and Building Services"
Hotels And Motels,Premier Travel Inns,Premier Inn,Agency and Third Party Payments related expenditure,19/09/2023,548.27,"Director of Housing, Neighbourhood and Building Services"
Hotels And Motels,Premier Travel Inns,Premier Inn,Agency and Third Party Payments related expenditure,19/09/2023,600.36,"Director of Housing, Neighbourhood and Building Services"
Hotels And Motels,Travelodge,Travelodge Gb0000,Agency and Third Party Payments related expenditure,19/09/2023,628.67,"Director of Housing, Neighbourhood and Building Services"
Hotels And Motels,Premier Travel Inns,Premier Inn,Agency and Third Party Payments related expenditure,19/09/2023,631.55,"Director of Housing, Neighbourhood and Building Services"
Hotels And Motels,Travelodge,Travelodge Gb0000,Agency and Third Party Payments related expenditure,16/08/2023,-764.76,"Director of Housing, Neighbourhood and Building Services"
Transportation Conveyor,Travel Agencies,Bkg*hotel At Booking.C,Agency and Third Party Payments related expenditure,26/07/2023,745.75,"Director of Housing, Neighbourhood and Building Services"
Hotels And Motels,Premier Travel Inns,Premier Inn,Agency and Third Party Payments related expenditure,20/07/2023,917.86,"Director of Housing, Neighbourhood and Building Services"
Transportation Conveyor,Travel Agencies,Bkg*hotel At Booking.C,Agency and Third Party Payments related expenditure,20/07/2023,937.5,"Director of Housing, Neighbourhood and Building Services"
Transportation Conveyor,Travel Agencies,Bkg*hotel At Booking.C,Agency and Third Party Payments related expenditure,17/08/2023,966.67,"Director of Housing, Neighbourhood and Building Services"
Hotels And Motels,Premier Travel Inns,Premier Inn,Agency and Third Party Payments related expenditure,18/08/2023,1008.63,"Director of Housing, Neighbourhood and Building Services"
Transportation Conveyor,Travel Agencies,Bkg*hotel At Booking.C,Agency and Third Party Payments related expenditure,12/09/2023,1120.83,"Director of Housing, Neighbourhood and Building Services"
Hotels And Motels,Premier Travel Inns,Premier Inn,Agency and Third Party Payments related expenditure,17/08/2023,1186.13,"Director of Housing, Neighbourhood and Building Services"
Hotels And Motels,Premier Travel Inns,Premier Inn,Agency and Third Party Payments related expenditure,16/08/2023,-1188.23,"Director of Housing, Neighbourhood and Building Services"
Transportation Conveyor,Travel Agencies,Bkg*hotel At Booking.C,Agency and Third Party Payments related expenditure,30/08/2023,1210.42,"Director of Housing, Neighbourhood and Building Services"
Hotels And Motels,Premier Travel Inns,Premier Inn,Agency and Third Party Payments related expenditure,21/09/2023,1225.3,"Director of Housing, Neighbourhood and Building Services"
Transportation Conveyor,Travel Agencies,Bkg*hotel At Booking.C,Agency and Third Party Payments related expenditure,27/07/2023,1258.33,"Director of Housing, Neighbourhood and Building Services"
Transportation Conveyor,Travel Agencies,Bkg*hotel At Booking.C,Agency and Third Party Payments related expenditure,22/09/2023,1285.83,"Director of Housing, Neighbourhood and Building Services"
Hotels And Motels,Travelodge,Travelodge Gb0000,Agency and Third Party Payments related expenditure,19/09/2023,1316.47,"Director of Housing, Neighbourhood and Building Services"
Transportation Conveyor,Travel Agencies,Bkg*hotel At Booking.C,Agency and Third Party Payments related expenditure,05/09/2023,1316.67,"Director of Housing, Neighbourhood and Building Services"
Hotels And Motels,Premier Travel Inns,Premier Inn,Agency and Third Party Payments related expenditure,21/07/2023,1480.72,"Director of Housing, Neighbourhood and Building Services"
Transportation Conveyor,Travel Agencies,Bkg*hotel At Booking.C,Agency and Third Party Payments related expenditure,02/09/2023,-1482.79,"Director of Housing, Neighbourhood and Building Services"
Hotels And Motels,Travelodge,Travelodge Gb0000,Agency and Third Party Payments related expenditure,11/08/2023,1510.6,"Director of Housing, Neighbourhood and Building Services"
Transportation Conveyor,Travel Agencies,Bkg*hotel At Booking.C,Agency and Third Party Payments related expenditure,31/08/2023,-1530.32,"Director of Housing, Neighbourhood and Building Services"
Hotels And Motels,Premier Travel Inns,Premier Inn,Agency and Third Party Payments related expenditure,20/07/2023,1560.72,"Director of Housing, Neighbourhood and Building Services"
Transportation Conveyor,Travel Agencies,Bkg*hotel At Booking.C,Agency and Third Party Payments related expenditure,27/07/2023,1602.33,"Director of Housing, Neighbourhood and Building Services"
Transportation Conveyor,Travel Agencies,Bkg*hotel At Booking.C,Agency and Third Party Payments related expenditure,16/08/2023,1618.23,"Director of Housing, Neighbourhood and Building Services"
Transportation Conveyor,Travel Agencies,Bkg*hotel At Booking.C,Agency and Third Party Payments related expenditure,28/07/2023,1670,"Director of Housing, Neighbourhood and Building Services"
Hotels And Motels,Travelodge,Travelodge Gb0000,Agency and Third Party Payments related expenditure,11/08/2023,1729.72,"Director of Housing, Neighbourhood and Building Services"
Hotels And Motels,Holiday Inn,Holiday Inn Express Ports,Agency and Third Party Payments related expenditure,16/07/2023,1784.51,"Director of Housing, Neighbourhood and Building Services"
Hotels And Motels,Travelodge,Travelodge Gb0000,Agency and Third Party Payments related expenditure,17/07/2023,1811.27,"Director of Housing, Neighbourhood and Building Services"
Other Supplies,Misc Speciality Retail,Amznmktplace,Capital related expenditure,07/08/2023,4.94,Capital - Housing and Tackling Homelessness (HRA)
Government Service,Govt Serv - Default,Pcc Internet Payment,Supplies and Services related expenditure,19/07/2023,11,"Director of Housing, Neighbourhood and Building Services"
Government Service,Govt Serv - Default,Pcc Internet Payment,Supplies and Services related expenditure,24/07/2023,11,"Director of Housing, Neighbourhood and Building Services"
Other Supplies,Misc Speciality Retail,Amznmktplace,Agency and Third Party Payments related expenditure,07/08/2023,18.98,"Director of Culture, Leisure & Regulatory Services"
Other Supplies,Misc Speciality Retail,Amznmktplace,Capital related expenditure,07/08/2023,17.49,Capital - Housing and Tackling Homelessness (HRA)
Facilities/Repair Supplies,Bicycle Shops/Sales/Service,Halfords 0852,Premises related expenditure,26/07/2023,10,"Director of Housing, Neighbourhood and Building Services"
Facilities/Repair Supplies,Lawn/Garden Supply/Nursery,Carters Of Swanwic,Supplies and Services related expenditure,03/07/2023,55.4,"Director of Housing, Neighbourhood and Building Services"
Other Supplies,Misc Speciality Retail,W&p / Medirite,Premises related expenditure,25/09/2023,61.96,"Director of Housing, Neighbourhood and Building Services"
Facilities/Repair Supplies,Lawn/Garden Supply/Nursery,Carters Of Swanwic,Premises related expenditure,25/07/2023,103.7,"Director of Housing, Neighbourhood and Building Services"
Other Supplies,Misc Speciality Retail,W&p / Medirite,Premises related expenditure,11/09/2023,113.95,"Director of Housing, Neighbourhood and Building Services"
Other Supplies,Misc Speciality Retail,W&p / Medirite,Premises related expenditure,05/07/2023,143.46,"Director of Housing, Neighbourhood and Building Services"
Other Supplies,Misc Speciality Retail,W&p / Medirite,Premises related expenditure,24/07/2023,162.9,"Director of Housing, Neighbourhood and Building Services"
Business To Business Facility/,Hardware Equipment/Supplies,Croma Locksmiths & Sec,Supplies and Services related expenditure,06/07/2023,196.32,"Director of Housing, Neighbourhood and Building Services"
Other Supplies,Misc Speciality Retail,W&p / Medirite,Premises related expenditure,06/07/2023,457.54,"Director of Housing, Neighbourhood and Building Services"
Facilities/Repair Supplies,Lawn/Garden Supply/Nursery,Carters Of Swanwic,Premises related expenditure,18/09/2023,519.17,"Director of Housing, Neighbourhood and Building Services"
Other Supplies,Misc Speciality Retail,W&p / Medirite,Premises related expenditure,11/09/2023,558.78,"Director of Housing, Neighbourhood and Building Services"
Facilities/Repair Supplies,Lawn/Garden Supply/Nursery,Carters Of Swanwic,Premises related expenditure,18/09/2023,618,"Director of Housing, Neighbourhood and Building Services"
Facilities/Repair Supplies,Lawn/Garden Supply/Nursery,Carters Of Swanwic,Supplies and Services related expenditure,18/09/2023,698.85,"Director of Housing, Neighbourhood and Building Services"
Other Supplies,Misc Speciality Retail,W&p / Medirite,Premises related expenditure,31/08/2023,760.42,"Director of Housing, Neighbourhood and Building Services"
Other Supplies,Misc Speciality Retail,W&p / Medirite,Premises related expenditure,01/09/2023,829.16,"Director of Housing, Neighbourhood and Building Services"
Transportation Conveyor,"Parking Lots, Meters, Garages",Gunwharf Quays,Transport related expenditure,30/08/2023,3.5,Director of Children's Services and Education
Transportation Conveyor,"Parking Lots, Meters, Garages",Gunwharf Quays,Transport related expenditure,24/09/2023,4.2,Director of Children's Services and Education
Eating And Drinking Places,Eating Places/Restaurants,Coffee Cup,Agency and Third Party Payments related expenditure,03/09/2023,3.67,Director of Children's Services and Education
Type of Retail Store,Grocery Stores/Supermarkets,Tesco Stores 2494,Supplies and Services related expenditure,03/09/2023,4.5,Director of Children's Services and Education
Type of Retail Store,Grocery Stores/Supermarkets,Gunwharf News,Agency and Third Party Payments related expenditure,30/08/2023,6.25,Director of Children's Services and Education
Amusement/Entertainment,Motion Picture Theatres,Vue Cinemas,Agency and Third Party Payments related expenditure,30/08/2023,7.49,Director of Children's Services and Education
Type of Retail Store,Grocery Stores/Supermarkets,Tesco Stores 4579,Supplies and Services related expenditure,29/09/2023,15.8,Director of Children's Services and Education
Type of Retail Store,Grocery Stores/Supermarkets,Tesco Stores 4579,Supplies and Services related expenditure,07/09/2023,14.67,Director of Children's Services and Education
Facilities/Repair Supplies,Home Supply Warehouse Stores,B & Q 1260,Supplies and Services related expenditure,29/09/2023,32.5,Director of Children's Services and Education
Other Supplies,Misc Speciality Retail,Amznmktplace,Supplies and Services related expenditure,03/07/2023,1.83,Director of Children's Services and Education
Other Supplies,Misc Speciality Retail,Amznmktplace,Supplies and Services related expenditure,04/07/2023,2.74,Director of Children's Services and Education
Other Supplies,Misc Speciality Retail,Amznmktplace,Supplies and Services related expenditure,03/07/2023,3.2,Director of Children's Services and Education
Other Supplies,Misc Speciality Retail,Amznmktplace,Supplies and Services related expenditure,04/07/2023,3.32,Director of Children's Services and Education
Other Supplies,Misc Speciality Retail,Amznmktplace,Supplies and Services related expenditure,25/07/2023,5,Director of Children's Services and Education
Other Supplies,Misc Speciality Retail,Amznbusiness,Supplies and Services related expenditure,26/07/2023,5,Director of Children's Services and Education
Other Supplies,Misc Speciality Retail,Amznmktplace,Supplies and Services related expenditure,17/07/2023,5.48,Director of Children's Services and Education
Other Supplies,Misc Speciality Retail,Amznmktplace,Supplies and Services related expenditure,04/07/2023,5.77,Director of Children's Services and Education
Other Supplies,Misc Speciality Retail,Amznmktplace,Supplies and Services related expenditure,03/07/2023,8.32,Director of Children's Services and Education
Other Supplies,Misc Speciality Retail,Amznmktplace,Supplies and Services related expenditure,03/07/2023,8.32,Director of Children's Services and Education
Other Supplies,Misc Speciality Retail,Amznmktplace,Supplies and Services related expenditure,17/07/2023,11.49,Director of Children's Services and Education
Other Supplies,Misc Speciality Retail,Amznmktplace,Supplies and Services related expenditure,03/07/2023,14.16,Director of Children's Services and Education
Other Supplies,Misc Speciality Retail,Amznmktplace,Supplies and Services related expenditure,25/07/2023,14.66,Director of Children's Services and Education
Other Supplies,Misc Speciality Retail,Amznmktplace,Supplies and Services related expenditure,03/07/2023,16.48,Director of Children's Services and Education
Business To Business Eqpt/Furn,Commercial Equipment - Default,Safety Signs 4 Less,Premises related expenditure,14/08/2023,18.77,Director of Children's Services and Education
Other Supplies,Misc Speciality Retail,Amznmktplace,Supplies and Services related expenditure,04/07/2023,18.98,Director of Children's Services and Education
Other Supplies,Misc Speciality Retail,Amznmktplace,Supplies and Services related expenditure,03/07/2023,19.3,Director of Children's Services and Education
Other Supplies,Misc Speciality Retail,Amznmktplace,Supplies and Services related expenditure,11/09/2023,22.07,Director of Children's Services and Education
Other Supplies,Misc Speciality Retail,Amznmktplace,Supplies and Services related expenditure,04/07/2023,35.27,Director of Children's Services and Education
Other Supplies,Misc Speciality Retail,Amznmktplace,Supplies and Services related expenditure,25/07/2023,116.6,Director of Children's Services and Education
Government Service,Govt Serv - Default,Portsmouth City Co,Employees related expenditure,25/07/2023,2.25,Director of Adult Care
Government Service,Govt Serv - Default,Portsmouth City Co,Employees related expenditure,02/08/2023,2.25,Director of Adult Care
Government Service,Govt Serv - Default,Portsmouth City Co,Employees related expenditure,01/09/2023,3.6,Director of Adult Care
Type of Retail Store,Grocery Stores/Supermarkets,Gillett London Road,Supplies and Services related expenditure,04/08/2023,4.55,Director of Adult Care
Government Service,Govt Serv - Default,Portsmouth City Co,Employees related expenditure,11/07/2023,4.6,Director of Adult Care
Type of Retail Store,Grocery Stores/Supermarkets,Tesco Stores 6577,Supplies and Services related expenditure,04/09/2023,5.25,Director of Adult Care
Type of Retail Store,Grocery Stores/Supermarkets,Tesco Stores 6577,Supplies and Services related expenditure,03/07/2023,6.65,Director of Adult Care
Type of Retail Store,Grocery Stores/Supermarkets,Southern Co-Op 0247,Supplies and Services related expenditure,02/08/2023,9.58,Director of Adult Care
Other Supplies,Misc Gen Merchandise - Def,Pharmacy Medical Hec,Supplies and Services related expenditure,28/07/2023,355.22,Director of Adult Care
Government Service,Govt Serv - Default,C2e863600534v Ukvi,Employees related expenditure,23/08/2023,5199,Director of Adult Care
Type of Retail Store,Grocery Stores/Supermarkets,Tesco Stores 5475,Supplies and Services related expenditure,01/09/2023,9.17,Director of Adult Care
Other Supplies,Misc Speciality Retail,Medirite,Supplies and Services related expenditure,07/09/2023,14.95,Director of Adult Care
Other Supplies,Misc Speciality Retail,Amznmktplace,Supplies and Services related expenditure,06/07/2023,34.25,Director of Adult Care
Clothing Services,Mens/Womens Clothing Stores,Mountain Warehouse,Supplies and Services related expenditure,11/07/2023,50,Director of Adult Care
Business To Business Eqpt/Furn,Stationery/Office Supplies,Www.Banneruk.Com,Supplies and Services related expenditure,01/08/2023,67.22,Director of Adult Care
Business To Business Eqpt/Furn,Stationery/Office Supplies,Www.Banneruk.Com,Supplies and Services related expenditure,04/07/2023,109.91,Director of Adult Care
Clothing Services,Mens/Womens Clothing Stores,Mountain Warehouse,Supplies and Services related expenditure,14/07/2023,124.75,Director of Adult Care
Type of Retail Store,Grocery Stores/Supermarkets,Tesco Stores 4611,Supplies and Services related expenditure,21/09/2023,10,Director of Finance & Resources
Government Service,Schools - Default,Kaplan Publishing Limited,Supplies and Services related expenditure,27/07/2023,33.5,Director of Finance & Resources
Transportation Conveyor,Bus Lines/Charter/Tour,First Hampshire,Supplies and Services related expenditure,05/07/2023,2,Director of Adult Care
Transportation Conveyor,Bus Lines/Charter/Tour,First Hampshire,Supplies and Services related expenditure,06/07/2023,2,Director of Adult Care
Transportation Conveyor,Bus Lines/Charter/Tour,First Hampshire,Supplies and Services related expenditure,20/07/2023,2,Director of Adult Care
Transportation Conveyor,Bus Lines/Charter/Tour,First Hampshire,Supplies and Services related expenditure,20/07/2023,2,Director of Adult Care
Transportation Conveyor,Bus Lines/Charter/Tour,Stgcoach/Ctylink,Supplies and Services related expenditure,27/07/2023,2,Director of Adult Care
Transportation Conveyor,Bus Lines/Charter/Tour,First Hampshire,Supplies and Services related expenditure,10/08/2023,2,Director of Adult Care
Transportation Conveyor,Bus Lines/Charter/Tour,First Hampshire,Supplies and Services related expenditure,10/08/2023,2,Director of Adult Care
Transportation Conveyor,Bus Lines/Charter/Tour,Stgcoach/Ctylink,Supplies and Services related expenditure,21/09/2023,2,Director of Adult Care
Transportation Conveyor,Bus Lines/Charter/Tour,First Hampshire,Supplies and Services related expenditure,21/09/2023,2,Director of Adult Care
Miscellaneous,Misc Personal Serv - Def,Zettle_*courtx Ltd,Supplies and Services related expenditure,27/07/2023,3.1,Director of Adult Care
Transportation Conveyor,Bus Lines/Charter/Tour,Stgcoach/Ctylink,Supplies and Services related expenditure,10/08/2023,3.4,Director of Adult Care
Transportation Conveyor,Bus Lines/Charter/Tour,Stgcoach/Ctylink,Supplies and Services related expenditure,17/08/2023,3.4,Director of Adult Care
Transportation Conveyor,Bus Lines/Charter/Tour,Stgcoach/Ctylink,Supplies and Services related expenditure,30/08/2023,3.4,Director of Adult Care
Transportation Conveyor,Bus Lines/Charter/Tour,Stgcoach/Ctylink,Supplies and Services related expenditure,21/09/2023,3.4,Director of Adult Care
Transportation Conveyor,Bus Lines/Charter/Tour,First Hampshire,Supplies and Services related expenditure,03/08/2023,4,Director of Adult Care
Transportation Conveyor,Bus Lines/Charter/Tour,First Hampshire,Supplies and Services related expenditure,24/08/2023,4,Director of Adult Care
Government Service,Govt Serv - Default,Portsmouth City Co,Supplies and Services related expenditure,27/09/2023,63.33,"Director of Housing, Neighbourhood and Building Services"
Government Service,Govt Serv - Default,Portsmouth City Co,Supplies and Services related expenditure,27/09/2023,63.33,"Director of Housing, Neighbourhood and Building Services"
Government Service,Govt Serv - Default,Portsmouth City Co,Supplies and Services related expenditure,27/09/2023,63.33,"Director of Housing, Neighbourhood and Building Services"
Government Service,Govt Serv - Default,Portsmouth City Co,Supplies and Services related expenditure,27/09/2023,63.33,"Director of Housing, Neighbourhood and Building Services"
Business To Business Eqpt/Furn,Book Stores,Www.Jctltd.Co.Uk,Supplies and Services related expenditure,06/09/2023,88.33,"Director of Housing, Neighbourhood and Building Services"
Business To Business Eqpt/Furn,Book Stores,Www.Jctltd.Co.Uk,Supplies and Services related expenditure,08/09/2023,88.33,"Director of Housing, Neighbourhood and Building Services"
Business Services,Business Services - Default,Www.Planning.Co,Supplies and Services related expenditure,28/07/2023,248.33,"Director of Housing, Neighbourhood and Building Services"
Business To Business Eqpt/Furn,Book Stores,Www.Jctltd.Co.Uk,Supplies and Services related expenditure,17/08/2023,440.33,"Director of Housing, Neighbourhood and Building Services"
Government Service,Govt Serv - Default,Portsmouth Council,Transport related expenditure,12/09/2023,2.3,"Director of Housing, Neighbourhood and Building Services"
Utility,Utilities/Elec/Gas/H2O/Sani,Www.Ovoenergy.Com,Premises related expenditure,17/07/2023,4.17,"Director of Housing, Neighbourhood and Building Services"
Utility,Utilities/Elec/Gas/H2O/Sani,Www.Ovoenergy.Com,Premises related expenditure,21/07/2023,8.33,"Director of Housing, Neighbourhood and Building Services"
Utility,Utilities/Elec/Gas/H2O/Sani,Www.Utilita.Co.Uk,Premises related expenditure,07/09/2023,9.52,"Director of Housing, Neighbourhood and Building Services"
Utility,Utilities/Elec/Gas/H2O/Sani,Utilita Energy Limited,Premises related expenditure,28/09/2023,10,"Director of Housing, Neighbourhood and Building Services"
Utility,Utilities/Elec/Gas/H2O/Sani,Edf Energy-Dom,Premises related expenditure,21/07/2023,12.5,"Director of Housing, Neighbourhood and Building Services"
Other Supplies,Misc Gen Merchandise - Def,Wilko Retail Limited,Capital related expenditure,06/09/2023,13.33,Capital - Housing and Tackling Homelessness (HRA)
Type of Retail Store,Misc Food Stores - Default,Premier Fresh & Local,Premises related expenditure,17/07/2023,16.67,"Director of Housing, Neighbourhood and Building Services"
Utility,Utilities/Elec/Gas/H2O/Sani,Utilita Energy Limited,Premises related expenditure,08/09/2023,20,"Director of Housing, Neighbourhood and Building Services"
Facilities/Repair Supplies,Home Supply Warehouse Stores,B & Q 1238,Capital related expenditure,26/07/2023,20,Capital - Housing and Tackling Homelessness (HRA)
Type of Retail Store,Misc Food Stores - Default,Premier Fresh & Local,Premises related expenditure,07/09/2023,23.81,"Director of Housing, Neighbourhood and Building Services"
Type of Retail Store,Misc Food Stores - Default,Premier Fresh & Local,Premises related expenditure,07/09/2023,23.81,"Director of Housing, Neighbourhood and Building Services"
Type of Retail Store,Grocery Stores/Supermarkets,Tesco Stores 4579,Supplies and Services related expenditure,11/09/2023,29.79,"Director of Housing, Neighbourhood and Building Services"
Other Supplies,Misc Gen Merchandise - Def,Wilko Retail Limited,Capital related expenditure,04/09/2023,27.67,Capital - Housing and Tackling Homelessness (HRA)
Type of Retail Store,Fabric Stores,Cutting Edge Fabrics,Capital related expenditure,06/09/2023,29.17,Capital - Housing and Tackling Homelessness (HRA)
Utility,Utilities/Elec/Gas/H2O/Sani,Edf Energy-Ivr,Premises related expenditure,06/07/2023,32.15,"Director of Housing, Neighbourhood and Building Services"
Type of Retail Store,Misc Food Stores - Default,Premier Fresh & Local,Premises related expenditure,24/07/2023,33.33,"Director of Housing, Neighbourhood and Building Services"
Facilities/Repair Supplies,Home Supply Warehouse Stores,B & Q 1238,Capital related expenditure,08/09/2023,40,Capital - Housing and Tackling Homelessness (HRA)
Type of Retail Store,Misc Food Stores - Default,Premier Fresh & Local,Premises related expenditure,27/07/2023,40.83,"Director of Housing, Neighbourhood and Building Services"
Type of Retail Store,Misc Food Stores - Default,Premier Fresh & Local,Premises related expenditure,24/07/2023,41.67,"Director of Housing, Neighbourhood and Building Services"
Facilities/Repair Supplies,Home Supply Warehouse Stores,B & Q 1260,Capital related expenditure,10/07/2023,60.83,Capital - Housing and Tackling Homelessness (HRA)
Type of Retail Store,Misc Food Stores - Default,Premier Fresh & Local,Premises related expenditure,24/07/2023,62.5,"Director of Housing, Neighbourhood and Building Services"
Transportation Conveyor,Travel Agencies,Bkg*hotel At Booking.C,Supplies and Services related expenditure,12/09/2023,89.58,"Director of Housing, Neighbourhood and Building Services"
Facilities/Repair Supplies,Home Supply Warehouse Stores,B & Q 1260,Capital related expenditure,25/08/2023,97.04,Capital - Housing and Tackling Homelessness (HRA)
Facilities/Repair Supplies,Home Supply Warehouse Stores,B & Q 1260,Capital related expenditure,18/08/2023,111.46,Capital - Housing and Tackling Homelessness (HRA)
Facilities/Repair Supplies,Home Supply Warehouse Stores,B & Q 1260,Capital related expenditure,27/07/2023,112.08,Capital - Housing and Tackling Homelessness (HRA)
Other Supplies,Misc Speciality Retail,Timpson Ltd,Capital related expenditure,08/09/2023,112.5,Capital - Housing and Tackling Homelessness (HRA)
Hotels And Motels,Lodging/Hotels/Motels/Resorts,Farmhouse (Portsmouth),Supplies and Services related expenditure,16/09/2023,-142.51,"Director of Housing, Neighbourhood and Building Services"
Hotels And Motels,Holiday Inn,Holiday Inn Express Ports,Supplies and Services related expenditure,11/09/2023,163.09,"Director of Housing, Neighbourhood and Building Services"
Facilities/Repair Supplies,Home Supply Warehouse Stores,B & Q 1238,Capital related expenditure,25/08/2023,148.03,Capital - Housing and Tackling Homelessness (HRA)
Hotels And Motels,Lodging/Hotels/Motels/Resorts,Hi Portsmouth - Re,Supplies and Services related expenditure,12/09/2023,161.55,"Director of Housing, Neighbourhood and Building Services"
Facilities/Repair Supplies,Home Supply Warehouse Stores,B & Q 1260,Capital related expenditure,06/09/2023,180,Capital - Housing and Tackling Homelessness (HRA)
Facilities/Repair Supplies,Home Supply Warehouse Stores,B & Q 1260,Capital related expenditure,17/08/2023,181.33,Capital - Housing and Tackling Homelessness (HRA)
Transportation Conveyor,Travel Agencies,Bkg*hotel At Booking.C,Supplies and Services related expenditure,10/09/2023,187.5,"Director of Housing, Neighbourhood and Building Services"
Transportation Conveyor,Travel Agencies,Bkg*hotel At Booking.C,Supplies and Services related expenditure,10/09/2023,216.67,"Director of Housing, Neighbourhood and Building Services"
Hotels And Motels,Lodging/Hotels/Motels/Resorts,Farmhouse (Portsmouth),Supplies and Services related expenditure,16/09/2023,-274,"Director of Housing, Neighbourhood and Building Services"
Hotels And Motels,Hotel Ibis,Hotel Ibis,Supplies and Services related expenditure,10/09/2023,231.25,"Director of Housing, Neighbourhood and Building Services"
Transportation Conveyor,Travel Agencies,Bkg*hotel At Booking.C,Supplies and Services related expenditure,15/09/2023,-302.5,"Director of Housing, Neighbourhood and Building Services"
Hotels And Motels,Hotel Ibis,Hotel Ibis,Supplies and Services related expenditure,26/09/2023,252.08,"Director of Housing, Neighbourhood and Building Services"
Facilities/Repair Supplies,Home Supply Warehouse Stores,B & Q 1260,Capital related expenditure,03/08/2023,255,Capital - Housing and Tackling Homelessness (HRA)
Hotels And Motels,Lodging/Hotels/Motels/Resorts,Hi Portsmouth - Re,Supplies and Services related expenditure,11/09/2023,259.98,"Director of Housing, Neighbourhood and Building Services"
Facilities/Repair Supplies,Home Supply Warehouse Stores,B & Q 1238,Capital related expenditure,11/09/2023,262.5,Capital - Housing and Tackling Homelessness (HRA)
Transportation Conveyor,Travel Agencies,Bkg*hotel At Booking.C,Supplies and Services related expenditure,10/09/2023,333.33,"Director of Housing, Neighbourhood and Building Services"
Transportation Conveyor,Travel Agencies,Bkg*hotel At Booking.C,Supplies and Services related expenditure,12/09/2023,339.62,"Director of Housing, Neighbourhood and Building Services"
Transportation Conveyor,Travel Agencies,Bkg*hotel At Booking.C,Supplies and Services related expenditure,12/09/2023,357.71,"Director of Housing, Neighbourhood and Building Services"
Transportation Conveyor,Travel Agencies,Bkg*hotel At Booking.C,Supplies and Services related expenditure,12/09/2023,504.17,"Director of Housing, Neighbourhood and Building Services"
Transportation Conveyor,Travel Agencies,Bkg*hotel At Booking.C,Supplies and Services related expenditure,12/09/2023,504.17,"Director of Housing, Neighbourhood and Building Services"
Transportation Conveyor,Travel Agencies,Bkg*hotel At Booking.C,Supplies and Services related expenditure,12/09/2023,539.12,"Director of Housing, Neighbourhood and Building Services"
Transportation Conveyor,Travel Agencies,Bkg*hotel At Booking.C,Supplies and Services related expenditure,12/09/2023,539.12,"Director of Housing, Neighbourhood and Building Services"
Hotels And Motels,Lodging/Hotels/Motels/Resorts,Farmhouse (Portsmouth),Supplies and Services related expenditure,12/09/2023,660,"Director of Housing, Neighbourhood and Building Services"
Transportation Conveyor,Travel Agencies,Bkg*hotel At Booking.C,Supplies and Services related expenditure,11/09/2023,597.92,"Director of Housing, Neighbourhood and Building Services"
Transportation Conveyor,Travel Agencies,Bkg*hotel At Booking.C,Supplies and Services related expenditure,12/09/2023,606.42,"Director of Housing, Neighbourhood and Building Services"
Other Supplies,Misc Speciality Retail,Amznmktplace,Supplies and Services related expenditure,23/08/2023,6.99,Director of Adult Care
Other Supplies,Misc Speciality Retail,Amznmktplace,Supplies and Services related expenditure,22/08/2023,9.99,Director of Adult Care
Other Supplies,Misc Speciality Retail,Amznmktplace,Supplies and Services related expenditure,24/08/2023,16.66,Director of Adult Care
Other Supplies,Misc Speciality Retail,Amznmktplace,Supplies and Services related expenditure,16/07/2023,29.97,Director of Adult Care
Type of Retail Store,Grocery Stores/Supermarkets,Tesco Stores 6841,Supplies and Services related expenditure,12/09/2023,1.33,Director of Adult Care
Type of Retail Store,Grocery Stores/Supermarkets,Wm Morrisons Store,Supplies and Services related expenditure,19/07/2023,6.51,Director of Adult Care
Type of Retail Store,Grocery Stores/Supermarkets,Tesco Stores 4579,Supplies and Services related expenditure,27/09/2023,14.58,Director of Adult Care
Type of Retail Store,Grocery Stores/Supermarkets,Tesco Stores 6841,Supplies and Services related expenditure,12/09/2023,14.6,Director of Adult Care
Type of Retail Store,Cosmetic Stores,Sallysalonservices4243,Supplies and Services related expenditure,22/09/2023,31.88,Director of Adult Care
Business Expenses/Services,News Dealers/Newsstands,Falcon News,Supplies and Services related expenditure,11/09/2023,1.1,Director of Children's Services and Education
Transportation Conveyor,"Parking Lots, Meters, Garages",Fareham Bc Pof,Transport related expenditure,16/08/2023,1.5,Director of Children's Services and Education
Eating And Drinking Places,Fast Food Restaurants,Sbr Trading Ltd,Supplies and Services related expenditure,08/08/2023,2.62,Director of Children's Services and Education
Type of Retail Store,Misc Food Stores - Default,Ppoint_*pratheepan 311044,Supplies and Services related expenditure,29/08/2023,3.3,Director of Children's Services and Education
Type of Retail Store,Grocery Stores/Supermarkets,Sainsburys S/mkts,Supplies and Services related expenditure,08/08/2023,2.92,Director of Children's Services and Education
Type of Retail Store,Grocery Stores/Supermarkets,Sainsburys S/mkts,Supplies and Services related expenditure,26/09/2023,2.92,Director of Children's Services and Education
Eating And Drinking Places,Fast Food Restaurants,Costa Coffee 43010674,Supplies and Services related expenditure,20/09/2023,4.25,Director of Children's Services and Education
Automobile Services & Supplies,Service Stations,Bp Northolt Park Sf Conne,Supplies and Services related expenditure,18/07/2023,6.65,Director of Children's Services and Education
Automobile Services & Supplies,Service Stations,Bp Northolt Park Sf Conne,Supplies and Services related expenditure,15/09/2023,5.54,Director of Children's Services and Education
Type of Retail Store,Misc Food Stores - Default,Fleet South - Pret,Supplies and Services related expenditure,05/09/2023,5.75,Director of Children's Services and Education
Transportation Conveyor,"Parking Lots, Meters, Garages",Lb Merton - Ringo Parking,Transport related expenditure,08/08/2023,7.4,Director of Children's Services and Education
Eating And Drinking Places,Eating Places/Restaurants,Costa,Supplies and Services related expenditure,03/08/2023,6.67,Director of Children's Services and Education
Eating And Drinking Places,Eating Places/Restaurants,Costa,Supplies and Services related expenditure,24/08/2023,8.4,Director of Children's Services and Education
Eating And Drinking Places,Eating Places/Restaurants,Costa,Supplies and Services related expenditure,18/09/2023,8.4,Director of Children's Services and Education
Eating And Drinking Places,Fast Food Restaurants,Starbucks Coffee,Supplies and Services related expenditure,20/07/2023,7.11,Director of Children's Services and Education
Transportation Conveyor,Taxicabs/Limousines,Uber *trip,Supplies and Services related expenditure,11/09/2023,8.95,Director of Children's Services and Education
Transportation Conveyor,Bus Lines/Charter/Tour,First Bus - Web,Employees related expenditure,05/07/2023,9.5,Director of Children's Services and Education
Type of Retail Store,Grocery Stores/Supermarkets,Ajs Convenience,Supplies and Services related expenditure,03/07/2023,10,Director of Children's Services and Education
Transportation Conveyor,Taxicabs/Limousines,Uber *trip,Supplies and Services related expenditure,11/09/2023,10.08,Director of Children's Services and Education
Type of Retail Store,Grocery Stores/Supermarkets,Tesco Stores 3048,Supplies and Services related expenditure,11/09/2023,8.59,Director of Children's Services and Education
Other Supplies,Misc Speciality Retail,Amznmktplace,Supplies and Services related expenditure,14/07/2023,9.16,Director of Children's Services and Education
Other Supplies,Discount Stores,Argos Ltd,Supplies and Services related expenditure,11/09/2023,-10.99,Director of Children's Services and Education
Type of Retail Store,Grocery Stores/Supermarkets,Aldi Stores Ltd,Supplies and Services related expenditure,03/07/2023,11.69,Director of Children's Services and Education
Type of Retail Store,Grocery Stores/Supermarkets,Tesco Stores 4611,Supplies and Services related expenditure,26/09/2023,12.46,Director of Children's Services and Education
Other Supplies,Misc Speciality Retail,Amznmktplace,Supplies and Services related expenditure,11/07/2023,16.62,Director of Children's Services and Education
Type of Retail Store,Grocery Stores/Supermarkets,Tesco Gift Card,Supplies and Services related expenditure,03/08/2023,20,Director of Children's Services and Education
Type of Retail Store,Grocery Stores/Supermarkets,Tesco Gift Card,Supplies and Services related expenditure,07/08/2023,20,Director of Children's Services and Education
Type of Retail Store,Grocery Stores/Supermarkets,Tesco Gift Card,Supplies and Services related expenditure,14/08/2023,20,Director of Children's Services and Education
Type of Retail Store,Grocery Stores/Supermarkets,Tesco Gift Card,Supplies and Services related expenditure,22/08/2023,20,Director of Children's Services and Education
Type of Retail Store,Grocery Stores/Supermarkets,Tesco Stores 4579,Supplies and Services related expenditure,31/08/2023,20,Director of Children's Services and Education
Type of Retail Store,Grocery Stores/Supermarkets,Tesco Gift Card,Supplies and Services related expenditure,10/07/2023,25,Director of Children's Services and Education
Type of Retail Store,Grocery Stores/Supermarkets,Tesco Gift Card,Supplies and Services related expenditure,18/07/2023,25,Director of Children's Services and Education
Type of Retail Store,Grocery Stores/Supermarkets,Tesco Gift Card,Supplies and Services related expenditure,03/08/2023,25,Director of Children's Services and Education
Type of Retail Store,Grocery Stores/Supermarkets,Tesco Gift Card,Supplies and Services related expenditure,26/09/2023,25,Director of Children's Services and Education
Professional Services,Real Estate Agents And Managers,Www.Spareroom.Co.Uk,Supplies and Services related expenditure,04/08/2023,25.99,Director of Children's Services and Education
Facilities/Repair Supplies,Lumber/Build. Supply Stores,B&q Ltd,Supplies and Services related expenditure,27/09/2023,27.08,Director of Children's Services and Education
Government Service,Govt Serv - Default,Driving Licence Web,Supplies and Services related expenditure,22/08/2023,34,Director of Children's Services and Education
Facilities/Repair Supplies,Home Supply Warehouse Stores,B & Q 1260,Supplies and Services related expenditure,20/09/2023,41.67,Director of Children's Services and Education
Other Supplies,Variety Stores,T K Maxx,Supplies and Services related expenditure,12/07/2023,61.62,Director of Children's Services and Education
Facilities/Repair Supplies,Misc Home Furnishing,Www.Therange.Co.Uk,Supplies and Services related expenditure,27/09/2023,62.44,Director of Children's Services and Education
Government Service,Govt Serv - Default,2maa039213811 Td E-Pmt,Supplies and Services related expenditure,01/08/2023,75,Director of Children's Services and Education
Government Service,Govt Serv - Default,2maa039307836 Td E-Pmt,Supplies and Services related expenditure,04/08/2023,75,Director of Children's Services and Education
Other Supplies,Department Stores,Www.Argos.Co.Uk,Supplies and Services related expenditure,04/08/2023,69.12,Director of Children's Services and Education
Other Supplies,Misc Speciality Retail,Amznmktplace,Supplies and Services related expenditure,08/08/2023,84.15,Director of Children's Services and Education
Transportation Conveyor,Passenger Railways,Trainline,Transport related expenditure,27/09/2023,122.82,Director of Children's Services and Education
Equipment And Furniture,Household Appliance Stores,Ao Retail Limited,Supplies and Services related expenditure,27/09/2023,110.83,Director of Children's Services and Education
Equipment And Furniture,Household Appliance Stores,Ao Retail Limited,Supplies and Services related expenditure,27/09/2023,232.5,Director of Children's Services and Education
Miscellaneous,Charitable/Soc Service Orgs,British Heart Foundati,Supplies and Services related expenditure,16/08/2023,470.83,Director of Children's Services and Education
Type of Retail Store,Grocery Stores/Supermarkets,Asda Stores,Supplies and Services related expenditure,23/07/2023,5.5,Director of Adult Care
Type of Retail Store,Grocery Stores/Supermarkets,Asda Groceries Online,Supplies and Services related expenditure,01/08/2023,-0.1,"Director of Housing, Neighbourhood and Building Services"
Other Supplies,Misc Speciality Retail,Amznmktplace,Supplies and Services related expenditure,19/09/2023,1.25,"Director of Housing, Neighbourhood and Building Services"
Other Supplies,Misc Speciality Retail,Amznmktplace,Supplies and Services related expenditure,19/09/2023,1.25,"Director of Housing, Neighbourhood and Building Services"
Other Supplies,Misc Speciality Retail,Amznmktplace,Supplies and Services related expenditure,10/07/2023,2.98,"Director of Housing, Neighbourhood and Building Services"
Type of Retail Store,Grocery Stores/Supermarkets,Asda Groceries Online,Supplies and Services related expenditure,28/08/2023,-3.42,"Director of Housing, Neighbourhood and Building Services"
Other Supplies,Misc Speciality Retail,Amznmktplace,Supplies and Services related expenditure,08/07/2023,4.83,"Director of Housing, Neighbourhood and Building Services"
Other Supplies,Misc Speciality Retail,Amznbusiness,Supplies and Services related expenditure,08/09/2023,5.23,"Director of Housing, Neighbourhood and Building Services"
Other Supplies,Misc Speciality Retail,Amznmktplace,Supplies and Services related expenditure,22/07/2023,5.79,"Director of Housing, Neighbourhood and Building Services"
Other Supplies,Misc Speciality Retail,Amznmktplace,Supplies and Services related expenditure,20/09/2023,5.82,"Director of Housing, Neighbourhood and Building Services"
Other Supplies,Misc Speciality Retail,Amznmktplace,Supplies and Services related expenditure,19/09/2023,5.98,"Director of Housing, Neighbourhood and Building Services"
Other Supplies,Misc Speciality Retail,Amznmktplace,Supplies and Services related expenditure,10/07/2023,6.24,"Director of Housing, Neighbourhood and Building Services"
Other Supplies,Misc Speciality Retail,Amznmktplace,Supplies and Services related expenditure,10/07/2023,6.24,"Director of Housing, Neighbourhood and Building Services"
Other Supplies,Misc Speciality Retail,Amznmktplace,Supplies and Services related expenditure,08/08/2023,6.28,"Director of Housing, Neighbourhood and Building Services"
Other Supplies,Misc Speciality Retail,Amznmktplace,Supplies and Services related expenditure,25/08/2023,7.48,"Director of Housing, Neighbourhood and Building Services"
Other Supplies,Misc Speciality Retail,Amznmktplace,Supplies and Services related expenditure,25/08/2023,7.48,"Director of Housing, Neighbourhood and Building Services"
Other Supplies,Misc Speciality Retail,Amznmktplace,Supplies and Services related expenditure,22/09/2023,7.49,"Director of Housing, Neighbourhood and Building Services"
Other Supplies,Misc Speciality Retail,Amznbusiness,Supplies and Services related expenditure,08/09/2023,7.68,"Director of Housing, Neighbourhood and Building Services"
Other Supplies,Misc Speciality Retail,Amznmktplace,Supplies and Services related expenditure,20/09/2023,7.77,"Director of Housing, Neighbourhood and Building Services"
Other Supplies,Misc Speciality Retail,Amznmktplace,Supplies and Services related expenditure,10/07/2023,8.24,"Director of Housing, Neighbourhood and Building Services"
Other Supplies,Misc Speciality Retail,Amznmktplace,Supplies and Services related expenditure,20/09/2023,8.97,"Director of Housing, Neighbourhood and Building Services"
Professional Services,Architectural/Eng/Survey,M L Fixings,Supplies and Services related expenditure,04/08/2023,9,"Director of Housing, Neighbourhood and Building Services"
Facilities/Repair Supplies,Hardware Stores,Toolstation Uk,Supplies and Services related expenditure,25/09/2023,9.82,"Director of Housing, Neighbourhood and Building Services"
Other Supplies,Misc Speciality Retail,Amznmktplace,Supplies and Services related expenditure,01/08/2023,9.98,"Director of Housing, Neighbourhood and Building Services"
Other Supplies,Misc Speciality Retail,Amznmktplace,Premises related expenditure,10/08/2023,9.99,"Director of Housing, Neighbourhood and Building Services"
Facilities/Repair Supplies,Home Supply Warehouse Stores,B & Q 1260,Supplies and Services related expenditure,29/09/2023,10.79,"Director of Housing, Neighbourhood and Building Services"
Other Supplies,Misc Speciality Retail,Amznmktplace,Premises related expenditure,11/08/2023,11.39,"Director of Housing, Neighbourhood and Building Services"
Other Supplies,Misc Speciality Retail,Amznmktplace,Supplies and Services related expenditure,14/09/2023,11.66,"Director of Housing, Neighbourhood and Building Services"
Other Supplies,Misc Speciality Retail,Amznmktplace,Supplies and Services related expenditure,26/07/2023,12.63,"Director of Housing, Neighbourhood and Building Services"
Other Supplies,Misc Speciality Retail,Amznmktplace,Supplies and Services related expenditure,22/07/2023,13.16,"Director of Housing, Neighbourhood and Building Services"
Other Supplies,Misc Speciality Retail,Amznmktplace,Supplies and Services related expenditure,02/08/2023,13.32,"Director of Housing, Neighbourhood and Building Services"
Type of Retail Store,Grocery Stores/Supermarkets,Gillett St James Rd,Supplies and Services related expenditure,30/08/2023,17.9,"Director of Housing, Neighbourhood and Building Services"
Other Supplies,Misc Speciality Retail,Amznmktplace,Supplies and Services related expenditure,08/07/2023,16.27,"Director of Housing, Neighbourhood and Building Services"
Other Supplies,Misc Speciality Retail,Amznmktplace,Supplies and Services related expenditure,17/07/2023,16.63,"Director of Housing, Neighbourhood and Building Services"
Facilities/Repair Supplies,Home Supply Warehouse Stores,B & Q 1260,Supplies and Services related expenditure,29/09/2023,17.27,"Director of Housing, Neighbourhood and Building Services"
Other Supplies,Misc Speciality Retail,Amznmktplace,Supplies and Services related expenditure,20/09/2023,17.37,"Director of Housing, Neighbourhood and Building Services"
Other Supplies,Misc Speciality Retail,Amznmktplace,Supplies and Services related expenditure,17/07/2023,20.88,"Director of Housing, Neighbourhood and Building Services"
Other Supplies,Misc Speciality Retail,Amznmktplace,Supplies and Services related expenditure,01/08/2023,17.46,"Director of Housing, Neighbourhood and Building Services"
Other Supplies,Misc Speciality Retail,Amznmktplace,Supplies and Services related expenditure,11/08/2023,18.32,"Director of Housing, Neighbourhood and Building Services"
Other Supplies,Misc Speciality Retail,Amznmktplace,Supplies and Services related expenditure,26/07/2023,21.57,"Director of Housing, Neighbourhood and Building Services"
Professional Services,Mgmt/Consult/Public Rel Ser,Griffics Limited,Supplies and Services related expenditure,26/07/2023,26,"Director of Housing, Neighbourhood and Building Services"
Other Supplies,Misc Speciality Retail,Amznmktplace,Supplies and Services related expenditure,08/09/2023,29.98,"Director of Housing, Neighbourhood and Building Services"
Facilities/Repair Supplies,Drapery & Upholstery Stores,Dunelm Ltd,Supplies and Services related expenditure,24/09/2023,30,"Director of Housing, Neighbourhood and Building Services"
Type of Retail Store,Grocery Stores/Supermarkets,Wm Morrisons Store,Supplies and Services related expenditure,01/08/2023,31.25,"Director of Housing, Neighbourhood and Building Services"
Other Supplies,Misc Speciality Retail,Amznmktplace,Supplies and Services related expenditure,04/07/2023,31.57,"Director of Housing, Neighbourhood and Building Services"
Professional Services,Architectural/Eng/Survey,M L Fixings,Supplies and Services related expenditure,27/07/2023,32.85,"Director of Housing, Neighbourhood and Building Services"
Other Supplies,Misc Gen Merchandise - Def,B&m Retail Ltd,Supplies and Services related expenditure,24/08/2023,43.98,"Director of Housing, Neighbourhood and Building Services"
Equipment And Furniture,Household Appliance Stores,Southern Gas,Premises related expenditure,20/07/2023,44.26,"Director of Housing, Neighbourhood and Building Services"
Other Supplies,Misc Speciality Retail,Amznmktplace,Supplies and Services related expenditure,17/07/2023,46.48,"Director of Housing, Neighbourhood and Building Services"
Other Supplies,Misc Gen Merchandise - Def,B&m Retail Ltd,Supplies and Services related expenditure,21/08/2023,60,"Director of Housing, Neighbourhood and Building Services"
Other Supplies,Misc Speciality Retail,Amznmktplace,Supplies and Services related expenditure,26/07/2023,54.95,"Director of Housing, Neighbourhood and Building Services"
Other Supplies,Misc Speciality Retail,Amznmktplace,Supplies and Services related expenditure,26/07/2023,56.63,"Director of Housing, Neighbourhood and Building Services"
Other Supplies,Misc Speciality Retail,Amznmktplace,Supplies and Services related expenditure,26/07/2023,64.72,"Director of Housing, Neighbourhood and Building Services"
Other Supplies,Misc Speciality Retail,W&p / Medirite,Premises related expenditure,10/07/2023,64.82,"Director of Housing, Neighbourhood and Building Services"
Type of Retail Store,Sporting Goods Stores,The Soccer Store,Supplies and Services related expenditure,02/07/2023,69.08,"Director of Housing, Neighbourhood and Building Services"
Caterers Food,Caterers,Caterspeed,Supplies and Services related expenditure,09/07/2023,72.7,"Director of Housing, Neighbourhood and Building Services"
Other Supplies,Misc Speciality Retail,Amznmktplace,Supplies and Services related expenditure,04/07/2023,74.15,"Director of Housing, Neighbourhood and Building Services"
Other Supplies,Misc Speciality Retail,W&p / Medirite,Premises related expenditure,18/08/2023,141.61,"Director of Housing, Neighbourhood and Building Services"
Type of Retail Store,Grocery Stores/Supermarkets,Asda Groceries Online,Supplies and Services related expenditure,28/08/2023,182.16,"Director of Housing, Neighbourhood and Building Services"
Facilities/Repair Supplies,Lumber/Build. Supply Stores,B&q Ltd,Supplies and Services related expenditure,26/07/2023,163.33,"Director of Housing, Neighbourhood and Building Services"
Type of Retail Store,Grocery Stores/Supermarkets,Sainsburys Smkts,Supplies and Services related expenditure,28/07/2023,201.5,"Director of Housing, Neighbourhood and Building Services"
Type of Retail Store,Grocery Stores/Supermarkets,Asda Groceries Online,Supplies and Services related expenditure,01/08/2023,218.45,"Director of Housing, Neighbourhood and Building Services"
Amusement/Entertainment,Tourist Attractions And Xhbt,Paypal,Supplies and Services related expenditure,10/08/2023,900,"Director of Housing, Neighbourhood and Building Services"
Caterers Food,Caterers,Eventus Hire Ltd,Supplies and Services related expenditure,01/08/2023,20.65,Director of Corporate Services
Professional Services,Legal Services Attorneys,Warner Goodman Llp,Employees related expenditure,12/07/2023,250,Director of Corporate Services
Transportation Conveyor,Bus Lines/Charter/Tour,First Bus,Transport related expenditure,21/08/2023,9.8,Director of Children's Services and Education
Government Service,Govt Serv - Default,Pcc Internet Payment,Supplies and Services related expenditure,15/08/2023,11,Director of Children's Services and Education
Other Supplies,Department Stores,Www.Argos.Co.Uk,Supplies and Services related expenditure,12/09/2023,11.5,Director of Children's Services and Education
Eating And Drinking Places,Eating Places/Restaurants,Uber *eats,Supplies and Services related expenditure,30/07/2023,11.88,Director of Children's Services and Education
Eating And Drinking Places,Eating Places/Restaurants,Uber *eats,Supplies and Services related expenditure,26/07/2023,11.94,Director of Children's Services and Education
Other Supplies,Misc Speciality Retail,Amznmktplace,Supplies and Services related expenditure,11/09/2023,12.08,Director of Children's Services and Education
Transportation Conveyor,Passenger Railways,Trainline,Transport related expenditure,04/09/2023,19.85,Director of Children's Services and Education
Type of Retail Store,Grocery Stores/Supermarkets,Tesco Gift Card,Supplies and Services related expenditure,10/08/2023,20,Director of Children's Services and Education
Eating And Drinking Places,Eating Places/Restaurants,Uber *eats,Supplies and Services related expenditure,30/07/2023,20.81,Director of Children's Services and Education
Other Supplies,Department Stores,Www.Argos.Co.Uk,Supplies and Services related expenditure,12/07/2023,20.95,Director of Children's Services and Education
Government Service,Govt Serv - Default,Pcc Internet Payment,Supplies and Services related expenditure,07/08/2023,22,Director of Children's Services and Education
Type of Retail Store,Grocery Stores/Supermarkets,Tesco Gift Card,Supplies and Services related expenditure,15/08/2023,25,Director of Children's Services and Education
Type of Retail Store,Grocery Stores/Supermarkets,Tesco Stores 4611,Supplies and Services related expenditure,26/09/2023,25,Director of Children's Services and Education
Eating And Drinking Places,Eating Places/Restaurants,Uber *eats,Supplies and Services related expenditure,24/07/2023,25.16,Director of Children's Services and Education
Transportation Conveyor,Bus Lines/Charter/Tour,Stagecoach Services,Transport related expenditure,24/07/2023,28,Director of Children's Services and Education
Type of Retail Store,Grocery Stores/Supermarkets,Tesco Stores 4611,Supplies and Services related expenditure,25/09/2023,30,Director of Children's Services and Education
Transportation Conveyor,Local Commuter Transport,Hovertravel Ltd- Ecomm,Transport related expenditure,13/07/2023,31,Director of Children's Services and Education
Transportation Conveyor,Local Commuter Transport,Hovertravel Ltd- Ecomm,Transport related expenditure,13/07/2023,31,Director of Children's Services and Education
Transportation Conveyor,Local Commuter Transport,Hovertravel Ltd- Ecomm,Transport related expenditure,13/07/2023,31,Director of Children's Services and Education
Transportation Conveyor,Local Commuter Transport,Hovertravel Ltd- Ecomm,Transport related expenditure,09/08/2023,31,Director of Children's Services and Education
Transportation Conveyor,Local Commuter Transport,Hovertravel Ltd- Ecomm,Transport related expenditure,29/08/2023,31,Director of Children's Services and Education
Transportation Conveyor,Local Commuter Transport,Hovertravel Ltd- Ecomm,Transport related expenditure,25/09/2023,31,Director of Children's Services and Education
Government Service,Govt Serv - Default,Pcc Internet Payment,Supplies and Services related expenditure,20/07/2023,33,Director of Children's Services and Education
Government Service,Govt Serv - Default,Portsmouth City Co,Transport related expenditure,12/07/2023,31.67,Director of Children's Services and Education
Government Service,Govt Serv - Default,Portsmouth City Co,Transport related expenditure,26/07/2023,31.67,Director of Children's Services and Education
Government Service,Govt Serv - Default,Portsmouth City Co,Transport related expenditure,14/08/2023,31.67,Director of Children's Services and Education
Government Service,Govt Serv - Default,Portsmouth City Co,Transport related expenditure,29/08/2023,31.67,Director of Children's Services and Education
Government Service,Govt Serv - Default,Portsmouth City Co,Transport related expenditure,13/09/2023,31.67,Director of Children's Services and Education
Amusement/Entertainment,Theatrical Producers,Thorpe Park,Supplies and Services related expenditure,11/07/2023,32.5,Director of Children's Services and Education
Transportation Conveyor,Passenger Railways,Trainline.Com,Transport related expenditure,10/07/2023,43.89,Director of Children's Services and Education
Transportation Conveyor,Bus Lines/Charter/Tour,First Bus,Transport related expenditure,29/08/2023,44.1,Director of Children's Services and Education
Transportation Conveyor,Bus Lines/Charter/Tour,First Bus,Transport related expenditure,08/09/2023,49,Director of Children's Services and Education
Type of Retail Store,Grocery Stores/Supermarkets,Tesco Gift Card,Supplies and Services related expenditure,20/07/2023,50,Director of Children's Services and Education
Business Services,Business Services - Default,Voucher Express,Supplies and Services related expenditure,20/07/2023,50,Director of Children's Services and Education
Type of Retail Store,Grocery Stores/Supermarkets,Tesco Stores 4611,Supplies and Services related expenditure,24/08/2023,50,Director of Children's Services and Education
Type of Retail Store,Grocery Stores/Supermarkets,Tesco Stores 4611,Supplies and Services related expenditure,30/08/2023,50,Director of Children's Services and Education
Type of Retail Store,Grocery Stores/Supermarkets,Tesco Stores 4611,Supplies and Services related expenditure,01/09/2023,50,Director of Children's Services and Education
Type of Retail Store,Grocery Stores/Supermarkets,Tesco Stores 4611,Supplies and Services related expenditure,26/09/2023,50,Director of Children's Services and Education
Other Supplies,Misc Speciality Retail,Amznmktplace,Supplies and Services related expenditure,04/09/2023,53.98,Director of Children's Services and Education
Eating And Drinking Places,Eating Places/Restaurants,Uber *eats,Supplies and Services related expenditure,28/07/2023,54.69,Director of Children's Services and Education
Transportation Conveyor,Bus Lines/Charter/Tour,First Bus,Transport related expenditure,13/07/2023,60.9,Director of Children's Services and Education
Other Supplies,Department Stores,Www.Argos.Co.Uk,Supplies and Services related expenditure,21/08/2023,60.95,Director of Children's Services and Education
Transportation Conveyor,Local Commuter Transport,Hovertravel Ltd- Ecomm,Transport related expenditure,19/07/2023,62,Director of Children's Services and Education
Transportation Conveyor,Local Commuter Transport,Hovertravel Ltd- Ecomm,Transport related expenditure,26/09/2023,62,Director of Children's Services and Education
Type of Retail Store,Grocery Stores/Supermarkets,Tesco Gift Card,Supplies and Services related expenditure,01/08/2023,70,Director of Children's Services and Education
Miscellaneous,Sport/Recreational Camps,Www.Active8minds.Co.Uk,Supplies and Services related expenditure,30/08/2023,73,Director of Children's Services and Education
Type of Retail Store,Grocery Stores/Supermarkets,Tesco Gift Card,Transport related expenditure,24/08/2023,75,Director of Children's Services and Education
Transportation Conveyor,Bus Lines/Charter/Tour,First Bus,Transport related expenditure,19/07/2023,76,Director of Children's Services and Education
Transportation Conveyor,Bus Lines/Charter/Tour,First Bus,Transport related expenditure,14/08/2023,76,Director of Children's Services and Education
Transportation Conveyor,Bus Lines/Charter/Tour,First Bus,Transport related expenditure,11/09/2023,76,Director of Children's Services and Education
Type of Retail Store,Grocery Stores/Supermarkets,Tesco Gift Card,Supplies and Services related expenditure,27/07/2023,80,Director of Children's Services and Education
Type of Retail Store,Grocery Stores/Supermarkets,Asda Stores Ltd,Supplies and Services related expenditure,22/08/2023,80,Director of Children's Services and Education
Facilities/Repair Supplies,Bicycle Shops/Sales/Service,Cycle Trace Ltd,Supplies and Services related expenditure,29/08/2023,66.67,Director of Children's Services and Education
Transportation Conveyor,Local Commuter Transport,Www.Wightlink.Co.Uk,Transport related expenditure,18/07/2023,82,Director of Children's Services and Education
Transportation Conveyor,Steamship/Cruise Lines,Redfunnel.Co.Uk,Transport related expenditure,18/07/2023,88.25,Director of Children's Services and Education
Transportation Conveyor,Passenger Railways,Trainline,Transport related expenditure,28/09/2023,90.94,Director of Children's Services and Education
Transportation Conveyor,Steamship/Cruise Lines,Redfunnel.Co.Uk,Transport related expenditure,01/08/2023,98.5,Director of Children's Services and Education
Hotels And Motels,Travelodge,Travelodge Gb0000,Supplies and Services related expenditure,16/08/2023,82.43,Director of Children's Services and Education
Type of Retail Store,Grocery Stores/Supermarkets,Tesco Gift Card,Supplies and Services related expenditure,21/08/2023,100,Director of Children's Services and Education
Type of Retail Store,Grocery Stores/Supermarkets,Tesco Stores 4611,Supplies and Services related expenditure,12/09/2023,100,Director of Children's Services and Education
Type of Retail Store,Grocery Stores/Supermarkets,Asda Stores Ltd,Supplies and Services related expenditure,28/09/2023,100,Director of Children's Services and Education
Transportation Conveyor,Passenger Railways,Trainline.Com,Transport related expenditure,10/08/2023,100.21,Director of Children's Services and Education
Eating And Drinking Places,Fast Food Restaurants,Pizza Hut,Supplies and Services related expenditure,24/07/2023,106.37,Director of Children's Services and Education
Transportation Conveyor,Steamship/Cruise Lines,Redfunnel.Co.Uk,Transport related expenditure,20/07/2023,122,Director of Children's Services and Education
Transportation Conveyor,Bus Lines/Charter/Tour,First Bus,Transport related expenditure,21/08/2023,136,Director of Children's Services and Education
Transportation Conveyor,Bus Lines/Charter/Tour,First Bus,Transport related expenditure,25/09/2023,136,Director of Children's Services and Education
Transportation Conveyor,Local Commuter Transport,Www.Wightlink.Co.Uk,Transport related expenditure,24/07/2023,141,Director of Children's Services and Education
Equipment And Furniture,Household Appliance Stores,Ao Retail Limited,Supplies and Services related expenditure,13/09/2023,149,Director of Children's Services and Education
Facilities/Repair Supplies,Misc Home Furnishing,Tillys Beds Ltd,Supplies and Services related expenditure,21/08/2023,150,Director of Children's Services and Education
Transportation Conveyor,Passenger Railways,Trainline,Transport related expenditure,26/09/2023,179.35,Director of Children's Services and Education
Hotels And Motels,Lodging/Hotels/Motels/Resorts,Hotel,Supplies and Services related expenditure,10/08/2023,151.22,Director of Children's Services and Education
Transportation Conveyor,Local Commuter Transport,Hovertravel Ltd- Ecomm,Transport related expenditure,28/07/2023,217,Director of Children's Services and Education
Transportation Conveyor,Local Commuter Transport,Hovertravel Ltd- Ecomm,Supplies and Services related expenditure,29/08/2023,279,Director of Children's Services and Education
Freight/Courier/Warehouse Svcs,Motor Freight Carriers,Sumup *holley Removals L,Supplies and Services related expenditure,21/09/2023,380,Director of Children's Services and Education
Business Services,Business Services - Default,Vivid Housing Ltd,Supplies and Services related expenditure,01/08/2023,611.84,Director of Children's Services and Education
Hotels And Motels,Lodging/Hotels/Motels/Resorts,Butlins,Supplies and Services related expenditure,21/09/2023,923.85,Director of Children's Services and Education
Type of Retail Store,Grocery Stores/Supermarkets,Iceland,Supplies and Services related expenditure,05/07/2023,1.75,Director of Children's Services and Education
Business Expenses/Services,Postage Stamps,Post Office Counter,Supplies and Services related expenditure,18/09/2023,7.65,Director of Children's Services and Education
Type of Retail Store,Grocery Stores/Supermarkets,Asda Stores,Supplies and Services related expenditure,03/09/2023,20.42,Director of Children's Services and Education
Other Supplies,Misc Speciality Retail,Zettle_*amberley Stores L,Premises related expenditure,10/08/2023,26.02,Director of Children's Services and Education
Facilities/Repair Supplies,Hardware Stores,Rubberferrules.Co.Uk,Premises related expenditure,28/09/2023,28.99,Director of Children's Services and Education
Facilities/Repair Services,Spec Contractors - Default,Portsmouth Trophy Centre,Premises related expenditure,20/07/2023,78.4,Director of Children's Services and Education
Type of Retail Store,Grocery Stores/Supermarkets,Asda Stores,Supplies and Services related expenditure,03/09/2023,92.2,Director of Children's Services and Education
Automobile Services & Supplies,Service Stations,Pfs @mfg Cosham,Transport related expenditure,08/09/2023,80.7,Director of Children's Services and Education
Business To Business Facility/,Electrical Parts/Equipment,Premier Farnell,Premises related expenditure,22/09/2023,94.39,Director of Children's Services and Education
Other Supplies,Misc Speciality Retail,Zettle_*amberley Store,Premises related expenditure,03/08/2023,126.09,Director of Children's Services and Education
Other Supplies,Misc Speciality Retail,Zettle_*havant Mowers,Premises related expenditure,10/08/2023,157.5,Director of Children's Services and Education
Business Expenses/Services,News Dealers/Newsstands,Wh Smith Cosham,Supplies and Services related expenditure,20/07/2023,170,Director of Children's Services and Education
Transportation Conveyor,Bus Lines/Charter/Tour,First Hampshire,Transport related expenditure,12/09/2023,2,"Director of Housing, Neighbourhood and Building Services"
Transportation Conveyor,Bus Lines/Charter/Tour,First Hampshire,Transport related expenditure,14/09/2023,2,"Director of Housing, Neighbourhood and Building Services"
Transportation Conveyor,Passenger Railways,Trainline,Transport related expenditure,11/09/2023,8.65,"Director of Housing, Neighbourhood and Building Services"
Transportation Conveyor,"Parking Lots, Meters, Garages",Southampton City Counc,Transport related expenditure,12/09/2023,10,"Director of Housing, Neighbourhood and Building Services"
Transportation Conveyor,Passenger Railways,Trainline,Transport related expenditure,11/09/2023,13.03,"Director of Housing, Neighbourhood and Building Services"
Transportation Conveyor,Passenger Railways,Trainline,Transport related expenditure,05/07/2023,21.17,"Director of Housing, Neighbourhood and Building Services"
Miscellaneous,Member Organizations - Def,Energy Managers Assoc,Employees related expenditure,05/07/2023,35,"Director of Housing, Neighbourhood and Building Services"
Business Services,Advertising Services,Facebk *jjxyttkte2,Capital related expenditure,16/08/2023,49.17,Capital - Housing and Tackling Homelessness
Business Services,Advertising Services,Facebk Twflktxte2,Capital related expenditure,17/08/2023,49.17,Capital - Housing and Tackling Homelessness
Business Services,Advertising Services,Facebk V98fzsxse2,Capital related expenditure,18/08/2023,49.17,Capital - Housing and Tackling Homelessness
Business Services,Advertising Services,Facebk N3d7ntxte2,Capital related expenditure,20/08/2023,50,Capital - Housing and Tackling Homelessness
Business Services,Advertising Services,Facebk *x4p6gt7te2,Capital related expenditure,15/09/2023,51.68,Capital - Housing and Tackling Homelessness
Business Services,Advertising Services,Facebk Uxdr3txse2,Capital related expenditure,21/08/2023,75,Capital - Housing and Tackling Homelessness
Business Services,Advertising Services,Facebk 338crsfte2,Capital related expenditure,23/08/2023,104.17,Capital - Housing and Tackling Homelessness
Business Services,Advertising Services,Facebk 4ks9us7te2,Capital related expenditure,27/08/2023,166.67,Capital - Housing and Tackling Homelessness
Hotels And Motels,Lodging/Hotels/Motels/Resorts,Genting Hotel,Supplies and Services related expenditure,18/09/2023,200.83,"Director of Housing, Neighbourhood and Building Services"
Business Services,Advertising Services,Facebk Vglvutpte2,Capital related expenditure,02/09/2023,250,Capital - Housing and Tackling Homelessness
Business Services,Advertising Services,Facebk Yfvbgutte2,Capital related expenditure,13/09/2023,345.16,Capital - Housing and Tackling Homelessness
Transportation Conveyor,Bus Lines/Charter/Tour,First Bus,Supplies and Services related expenditure,12/09/2023,12.5,"Director of Housing, Neighbourhood and Building Services"
Government Service,Govt Serv - Default,Pcc Internet Payment,Supplies and Services related expenditure,25/09/2023,20.83,"Director of Housing, Neighbourhood and Building Services"
Hotels And Motels,Marriott,Portsmouth Marriott,Supplies and Services related expenditure,19/09/2023,-24.68,"Director of Housing, Neighbourhood and Building Services"
Hotels And Motels,Lodging/Hotels/Motels/Resorts,Farmhouse (Portsmouth),Supplies and Services related expenditure,08/09/2023,30.97,"Director of Housing, Neighbourhood and Building Services"
Other Supplies,Department Stores,High Street Vouchers,Supplies and Services related expenditure,07/09/2023,33.33,"Director of Housing, Neighbourhood and Building Services"
Other Supplies,Department Stores,High Street Vouchers,Supplies and Services related expenditure,07/09/2023,41.67,"Director of Housing, Neighbourhood and Building Services"
Other Supplies,Department Stores,High Street Vouchers,Supplies and Services related expenditure,07/09/2023,41.67,"Director of Housing, Neighbourhood and Building Services"
Other Supplies,Department Stores,High Street Vouchers,Supplies and Services related expenditure,07/09/2023,41.67,"Director of Housing, Neighbourhood and Building Services"
Other Supplies,Gift/Card/Novelty And Souvenir Stores,Action Solutions,Supplies and Services related expenditure,07/09/2023,41.67,"Director of Housing, Neighbourhood and Building Services"
Transportation Conveyor,Local Commuter Transport,Gosport Ferry Limited,Supplies and Services related expenditure,13/09/2023,42.5,"Director of Housing, Neighbourhood and Building Services"
Transportation Conveyor,Local Commuter Transport,Gosport Ferry Limited,Supplies and Services related expenditure,13/09/2023,52,"Director of Housing, Neighbourhood and Building Services"
Transportation Conveyor,Local Commuter Transport,Gosport Ferry Limited,Supplies and Services related expenditure,13/09/2023,52,"Director of Housing, Neighbourhood and Building Services"
Transportation Conveyor,Bus Lines/Charter/Tour,First Bus,Supplies and Services related expenditure,12/09/2023,65.83,"Director of Housing, Neighbourhood and Building Services"
Transportation Conveyor,Local Commuter Transport,Gosport Ferry Limited,Supplies and Services related expenditure,13/09/2023,78,"Director of Housing, Neighbourhood and Building Services"
Transportation Conveyor,Bus Lines/Charter/Tour,First Bus,Supplies and Services related expenditure,12/09/2023,90.83,"Director of Housing, Neighbourhood and Building Services"
Hotels And Motels,Travelodge,Travelodge Gb0000,Supplies and Services related expenditure,18/09/2023,129.99,"Director of Housing, Neighbourhood and Building Services"
Hotels And Motels,Marriott,Portsmouth Marriott,Supplies and Services related expenditure,18/09/2023,223.33,"Director of Housing, Neighbourhood and Building Services"
Facilities/Repair Supplies,Home Supply Warehouse Stores,B & Q 1260,Supplies and Services related expenditure,17/08/2023,3.15,"Director of Housing, Neighbourhood and Building Services"
Facilities/Repair Supplies,Home Supply Warehouse Stores,B & Q 1260,Supplies and Services related expenditure,01/08/2023,5.82,"Director of Housing, Neighbourhood and Building Services"
Facilities/Repair Supplies,Home Supply Warehouse Stores,B & Q 1260,Supplies and Services related expenditure,25/07/2023,7.5,"Director of Housing, Neighbourhood and Building Services"
Business To Business Facility/,Industrial Supplies - Def,Arco Limited,Supplies and Services related expenditure,31/07/2023,10.62,"Director of Housing, Neighbourhood and Building Services"
Facilities/Repair Supplies,Bicycle Shops/Sales/Service,Halfords 0852,Supplies and Services related expenditure,24/08/2023,13.16,"Director of Housing, Neighbourhood and Building Services"
Business To Business Facility/,Industrial Supplies - Def,Arco Limited,Supplies and Services related expenditure,08/08/2023,22.89,"Director of Housing, Neighbourhood and Building Services"
Business To Business Facility/,Hardware Equipment/Supplies,Croma Locksmiths & Sec,Supplies and Services related expenditure,20/07/2023,24.3,"Director of Housing, Neighbourhood and Building Services"
Auto/Vehicle Expenses,Automotive Tire Stores,Portsmouth - Protyre,Transport related expenditure,25/08/2023,25,"Director of Housing, Neighbourhood and Building Services"
Automobile Services & Supplies,Service Stations,Tesco Pfs 4274,Supplies and Services related expenditure,20/09/2023,25,"Director of Housing, Neighbourhood and Building Services"
Business To Business Facility/,Industrial Supplies - Def,Arco Limited,Supplies and Services related expenditure,29/08/2023,25.68,"Director of Housing, Neighbourhood and Building Services"
Facilities/Repair Supplies,Lawn/Garden Supply/Nursery,Carters Of Swanwic,Supplies and Services related expenditure,18/08/2023,32.1,"Director of Housing, Neighbourhood and Building Services"
Facilities/Repair Supplies,Lawn/Garden Supply/Nursery,Carters Of Swanwic,Premises related expenditure,20/07/2023,38.3,"Director of Housing, Neighbourhood and Building Services"
Equipment And Furniture,Equip/Furn Rent/Lease Serv,Beaver Tool Hire Chichest,Supplies and Services related expenditure,25/07/2023,40.15,"Director of Housing, Neighbourhood and Building Services"
Automobile Services & Supplies,Service Stations,Mfg North End,Transport related expenditure,15/08/2023,45.49,"Director of Housing, Neighbourhood and Building Services"
Amusement/Entertainment,Amusement/Rec Serv - Def,Croma Locksmiths & Sec,Supplies and Services related expenditure,28/09/2023,60.75,"Director of Housing, Neighbourhood and Building Services"
Business To Business Facility/,Industrial Supplies - Def,Arco Limited,Supplies and Services related expenditure,20/07/2023,63.06,"Director of Housing, Neighbourhood and Building Services"
Other Supplies,Misc Speciality Retail,Amznmktplace,Supplies and Services related expenditure,09/08/2023,73.75,"Director of Housing, Neighbourhood and Building Services"
Facilities/Repair Supplies,Lawn/Garden Supply/Nursery,Carters Of Swanwic,Premises related expenditure,27/09/2023,73.95,"Director of Housing, Neighbourhood and Building Services"
Business To Business Facility/,Industrial Supplies - Def,Arco Limited,Supplies and Services related expenditure,17/08/2023,77.63,"Director of Housing, Neighbourhood and Building Services"
Facilities/Repair Supplies,Lawn/Garden Supply/Nursery,Carters Of Swanwic,Premises related expenditure,27/09/2023,81.75,"Director of Housing, Neighbourhood and Building Services"
Business To Business Facility/,Industrial Supplies - Def,Arco Limited,Supplies and Services related expenditure,27/07/2023,83.2,"Director of Housing, Neighbourhood and Building Services"
Facilities/Repair Supplies,Lawn/Garden Supply/Nursery,Carters Of Swanwic,Supplies and Services related expenditure,18/08/2023,88,"Director of Housing, Neighbourhood and Building Services"
Facilities/Repair Supplies,Lawn/Garden Supply/Nursery,Carters Of Swanwic,Supplies and Services related expenditure,05/09/2023,107.87,"Director of Housing, Neighbourhood and Building Services"
Facilities/Repair Supplies,Lawn/Garden Supply/Nursery,Carters Of Swanwic,Supplies and Services related expenditure,20/07/2023,111,"Director of Housing, Neighbourhood and Building Services"
Facilities/Repair Supplies,Lawn/Garden Supply/Nursery,Carters Of Swanwic,Premises related expenditure,27/09/2023,114.76,"Director of Housing, Neighbourhood and Building Services"
Auto/Vehicle Expenses,Automotive Tire Stores,Portsmouth - Protyre,Supplies and Services related expenditure,24/07/2023,123.33,"Director of Housing, Neighbourhood and Building Services"
Facilities/Repair Supplies,Lawn/Garden Supply/Nursery,Carters Of Swanwic,Premises related expenditure,27/09/2023,142.23,"Director of Housing, Neighbourhood and Building Services"
Business To Business Facility/,Industrial Supplies - Def,Arco Limited,Supplies and Services related expenditure,24/08/2023,149.14,"Director of Housing, Neighbourhood and Building Services"
Facilities Maintenance,Specialty Cleaning/Polishing,Cjs Portsmouth Limited,Supplies and Services related expenditure,08/08/2023,152.04,"Director of Housing, Neighbourhood and Building Services"
Facilities/Repair Supplies,Lawn/Garden Supply/Nursery,M & S Enterprises,Supplies and Services related expenditure,25/07/2023,207.76,"Director of Housing, Neighbourhood and Building Services"
Facilities Maintenance,Specialty Cleaning/Polishing,Cjs Portsmouth Limited,Supplies and Services related expenditure,08/08/2023,245.35,"Director of Housing, Neighbourhood and Building Services"
Facilities Maintenance,Specialty Cleaning/Polishing,Cjs Portsmouth Limited,Supplies and Services related expenditure,08/08/2023,253.22,"Director of Housing, Neighbourhood and Building Services"
Facilities/Repair Supplies,Lawn/Garden Supply/Nursery,Carters Of Swanwic,Supplies and Services related expenditure,27/09/2023,327.26,"Director of Housing, Neighbourhood and Building Services"
Facilities/Repair Supplies,Lawn/Garden Supply/Nursery,Carters Of Swanwic,Supplies and Services related expenditure,11/07/2023,409.48,"Director of Housing, Neighbourhood and Building Services"
Facilities/Repair Supplies,Lawn/Garden Supply/Nursery,Carters Of Swanwic,Transport related expenditure,18/08/2023,437.88,"Director of Housing, Neighbourhood and Building Services"
Facilities/Repair Supplies,Lawn/Garden Supply/Nursery,Carters Of Swanwic,Supplies and Services related expenditure,08/08/2023,674,"Director of Housing, Neighbourhood and Building Services"
Facilities/Repair Supplies,Home Supply Warehouse Stores,B & Q 1260,Supplies and Services related expenditure,31/08/2023,36.5,"Director of Housing, Neighbourhood and Building Services"
Government Service,Business/Secretarial School,Chartered Institute Of Le,Employees related expenditure,28/09/2023,33.32,Director of Corporate Services
Business Services,Business Services - Default,Eb *cornerstone Barris,Employees related expenditure,30/08/2023,250,Director of Corporate Services
Transportation Conveyor,"Parking Lots, Meters, Garages",Queen Alexandra Hospit,Supplies and Services related expenditure,11/09/2023,2,Director of Children's Services and Education
Eating And Drinking Places,Eating Places/Restaurants,McDonalds,Supplies and Services related expenditure,22/08/2023,2.65,Director of Children's Services and Education
Type of Retail Store,Grocery Stores/Supermarkets,Sainsburys S/Mkts,Supplies and Services related expenditure,16/08/2023,4.46,Director of Children's Services and Education
Eating And Drinking Places,Eating Places/Restaurants,Coffee House,Supplies and Services related expenditure,28/07/2023,4.5,Director of Children's Services and Education
Type of Retail Store,Bakeries,Thompson Deli & Baker,Supplies and Services related expenditure,04/09/2023,5.23,Director of Children's Services and Education
Eating And Drinking Places,Fast Food Restaurants,Costa Coffee 43010414,Supplies and Services related expenditure,16/08/2023,5.58,Director of Children's Services and Education
Eating And Drinking Places,Fast Food Restaurants,Eden Cafe,Supplies and Services related expenditure,26/09/2023,6.67,Director of Children's Services and Education
Eating And Drinking Places,Fast Food Restaurants,Starbucks,Supplies and Services related expenditure,09/08/2023,6.83,Director of Children's Services and Education
Eating And Drinking Places,Fast Food Restaurants,Eden Cafe,Supplies and Services related expenditure,21/07/2023,7,Director of Children's Services and Education
Transportation Conveyor,Passenger Railways,Swrailway Tck Off,Transport related expenditure,16/08/2023,22.5,Director of Children's Services and Education
Transportation Conveyor,Passenger Railways,Swrailway Tck Off,Transport related expenditure,28/07/2023,39.9,Director of Children's Services and Education
Transportation Conveyor,Passenger Railways,Swrailway Tck Off,Transport related expenditure,04/09/2023,39.9,Director of Children's Services and Education
Other Supplies,Misc Speciality Retail,Amznmktplace,Supplies and Services related expenditure,26/07/2023,36.62,Director of Children's Services and Education
Type of Retail Store,Grocery Stores/Supermarkets,Tesco Stores 3055,Supplies and Services related expenditure,11/09/2023,43.17,Director of Children's Services and Education
Type of Retail Store,Grocery Stores/Supermarkets,Asda Stores,Supplies and Services related expenditure,02/08/2023,63.72,Director of Children's Services and Education
Government Service,Govt Serv - Default,Hm Passport Office,Supplies and Services related expenditure,11/09/2023,68.75,Director of Children's Services and Education
Other Supplies,Discount Stores,Argos Farlington I,Supplies and Services related expenditure,28/09/2023,74.99,Director of Children's Services and Education
Type of Retail Store,Grocery Stores/Supermarkets,Tesco Stores 3048,Supplies and Services related expenditure,03/07/2023,1.15,Director of Children's Services and Education
Transportation Conveyor,"Parking Lots, Meters, Garages",Cp Plus Limited,Transport related expenditure,03/07/2023,1.2,Director of Children's Services and Education
Type of Retail Store,Grocery Stores/Supermarkets,Tesco Stores 4579,Supplies and Services related expenditure,22/09/2023,1.5,Director of Children's Services and Education
Transportation Conveyor,"Parking Lots, Meters, Garages",Portsmouth City Council 3,Transport related expenditure,23/07/2023,2.25,Director of Children's Services and Education
Type of Retail Store,Grocery Stores/Supermarkets,Tesco Stores 3048,Supplies and Services related expenditure,03/07/2023,3.12,Director of Children's Services and Education
Transportation Conveyor,"Parking Lots, Meters, Garages","Westquay Car Park, Sou",Transport related expenditure,03/08/2023,4.17,Director of Children's Services and Education
Type of Retail Store,Grocery Stores/Supermarkets,Southern Co-Op 0008,Supplies and Services related expenditure,17/09/2023,4.17,Director of Children's Services and Education
Other Supplies,Misc Gen Merchandise - Def,B&m Retail Ltd,Supplies and Services related expenditure,06/07/2023,4.37,Director of Children's Services and Education
Eating And Drinking Places,Eating Places/Restaurants,McDonalds,Agency and Third Party Payments related expenditure,06/07/2023,5.97,Director of Children's Services and Education
Type of Retail Store,Drug Stores & Pharmacies,Boots 1014,Supplies and Services related expenditure,30/09/2023,7.04,Director of Children's Services and Education
Transportation Conveyor,Passenger Railways,Trainline,Transport related expenditure,03/09/2023,9,Director of Children's Services and Education
Type of Retail Store,Grocery Stores/Supermarkets,Tesco Stores 3048,Supplies and Services related expenditure,22/07/2023,9.08,Director of Children's Services and Education
Eating And Drinking Places,Eating Places/Restaurants,McDonalds,Agency and Third Party Payments related expenditure,07/07/2023,7.59,Director of Children's Services and Education
Eating And Drinking Places,Eating Places/Restaurants,McDonalds,Agency and Third Party Payments related expenditure,07/07/2023,8.51,Director of Children's Services and Education
Eating And Drinking Places,Eating Places/Restaurants,McDonalds,Agency and Third Party Payments related expenditure,06/07/2023,8.72,Director of Children's Services and Education
Transportation Conveyor,Taxicabs/Limousines,Sumup *taxi Driver Abdul,Transport related expenditure,06/08/2023,11.4,Director of Children's Services and Education
Eating And Drinking Places,Fast Food Restaurants,Burger King,Agency and Third Party Payments related expenditure,06/08/2023,9.56,Director of Children's Services and Education
Eating And Drinking Places,Eating Places/Restaurants,McDonalds,Agency and Third Party Payments related expenditure,05/07/2023,9.99,Director of Children's Services and Education
Type of Retail Store,Grocery Stores/Supermarkets,Tesco Stores 4579,Supplies and Services related expenditure,22/09/2023,10.54,Director of Children's Services and Education
Type of Retail Store,Grocery Stores/Supermarkets,Tesco Stores 4579,Supplies and Services related expenditure,22/09/2023,13,Director of Children's Services and Education
Type of Retail Store,Grocery Stores/Supermarkets,Tesco Stores 4579,Supplies and Services related expenditure,22/09/2023,11.49,Director of Children's Services and Education
Eating And Drinking Places,Fast Food Restaurants,Subway 27843 Portsmouth,Agency and Third Party Payments related expenditure,22/07/2023,11.55,Director of Children's Services and Education
Type of Retail Store,Drug Stores & Pharmacies,Superdrug Stores Plc,Supplies and Services related expenditure,06/08/2023,11.65,Director of Children's Services and Education
Type of Retail Store,Grocery Stores/Supermarkets,Wm Morrisons Store,Supplies and Services related expenditure,09/08/2023,15.49,Director of Children's Services and Education
Utility,Phone Serv/Equip Utility,Giffgaff,Supplies and Services related expenditure,02/07/2023,20,Director of Children's Services and Education
Eating And Drinking Places,Eating Places/Restaurants,McDonalds,Agency and Third Party Payments related expenditure,03/08/2023,18.21,Director of Children's Services and Education
Clothing Services,Mens/Womens Clothing Stores,Jack Wills,Supplies and Services related expenditure,03/08/2023,18.42,Director of Children's Services and Education
Clothing Services,Mens/Womens Clothing Stores,H & M,Supplies and Services related expenditure,30/09/2023,19.32,Director of Children's Services and Education
Amusement/Entertainment,Tourist Attractions And Xhbt,Www.Theplayzone.Co.Uk,Agency and Third Party Payments related expenditure,09/08/2023,24.01,Director of Children's Services and Education
Type of Retail Store,Drug Stores & Pharmacies,Superdrug Stores Plc,Supplies and Services related expenditure,03/08/2023,20.82,Director of Children's Services and Education
Clothing Services,Mens/Womens Clothing Stores,Quiz,Agency and Third Party Payments related expenditure,03/08/2023,22.57,Director of Children's Services and Education
Facilities/Repair Supplies,Misc Home Furnishing,The Range,Supplies and Services related expenditure,06/07/2023,-23.33,Director of Children's Services and Education
Eating And Drinking Places,Fast Food Restaurants,Five Guys Southampton,Agency and Third Party Payments related expenditure,03/08/2023,23.75,Director of Children's Services and Education
Type of Retail Store,Grocery Stores/Supermarkets,Tesco Stores 4579,Supplies and Services related expenditure,22/09/2023,32.85,Director of Children's Services and Education
Type of Retail Store,Drug Stores & Pharmacies,Superdrug 1735 Portsmouth,Supplies and Services related expenditure,03/07/2023,27.58,Director of Children's Services and Education
Business To Business Facility/,Electrical Parts/Equipment,Cex,Supplies and Services related expenditure,05/07/2023,40,Director of Children's Services and Education
Clothing Services,Family Clothing Stores,Primark,Supplies and Services related expenditure,30/09/2023,40,Director of Children's Services and Education
Clothing Services,Mens/Womens Clothing Stores,Urban Outfitters 229,Agency and Third Party Payments related expenditure,03/08/2023,44.17,Director of Children's Services and Education
Type of Retail Store,Grocery Stores/Supermarkets,Tesco Stores 3048,Supplies and Services related expenditure,03/07/2023,44.25,Director of Children's Services and Education
Type of Retail Store,Grocery Stores/Supermarkets,Tesco Stores 4579,Supplies and Services related expenditure,22/09/2023,54.92,Director of Children's Services and Education
Type of Retail Store,Grocery Stores/Supermarkets,Tesco Stores 4579,Supplies and Services related expenditure,22/09/2023,47.92,Director of Children's Services and Education
Facilities/Repair Supplies,Misc Home Furnishing,The Range,Supplies and Services related expenditure,06/07/2023,70.79,Director of Children's Services and Education
Eating And Drinking Places,Eating Places/Restaurants,Cosmo Southampton,Agency and Third Party Payments related expenditure,03/08/2023,74,Director of Children's Services and Education
Type of Retail Store,Sporting Goods Stores,J D Sports Fashion Plc,Supplies and Services related expenditure,22/07/2023,75.17,Director of Children's Services and Education
Type of Retail Store,Wig And Toupee Stores,Sp Cliphair Uk,Supplies and Services related expenditure,19/09/2023,94.16,Director of Children's Services and Education
Other Supplies,Discount Stores,Poundland Ltd - 1171,Supplies and Services related expenditure,18/09/2023,2.08,Director of Portsmouth International Port
Other Supplies,Gift/Card/Novelty And Souvenir Stores,Papier,Supplies and Services related expenditure,07/08/2023,67.92,Director of Portsmouth International Port
Caterers Food,Caterers,Connect Vending Lt,Supplies and Services related expenditure,13/09/2023,180,Director of Portsmouth International Port
Airlines,Airlines And Air Carriers,Loganair,Supplies and Services related expenditure,26/07/2023,229.27,Director of Portsmouth International Port
Miscellaneous,Other Direct Marketers,Amazon.Co.Uk,Capital related expenditure,01/09/2023,1.5,Capital - Planning Policy & City Development
Type of Retail Store,Grocery Stores/Supermarkets,Waitrose 170,Capital related expenditure,12/09/2023,2.5,Capital - Planning Policy & City Development
Type of Retail Store,Grocery Stores/Supermarkets,Tesco Stores 6841,Capital related expenditure,16/08/2023,4.24,Capital - Planning Policy & City Development
Type of Retail Store,Grocery Stores/Supermarkets,Waitrose 170,Capital related expenditure,16/08/2023,6,Capital - Planning Policy & City Development
Type of Retail Store,Grocery Stores/Supermarkets,Waitrose 170,Capital related expenditure,09/08/2023,8.85,Capital - Planning Policy & City Development
Other Supplies,Misc Speciality Retail,Amznmktplace,Capital related expenditure,14/09/2023,12.46,Capital - Planning Policy & City Development
Business Expenses/Services,Postage Stamps,Post Office Counter,Capital related expenditure,31/08/2023,15,Capital - Planning Policy & City Development
Other Supplies,Discount Stores,Www.Theworks.Co.Uk,Supplies and Services related expenditure,28/09/2023,18.99,Director of Public Health
Other Supplies,Misc Speciality Retail,Amznmktplace,Capital related expenditure,31/08/2023,16.23,Capital - Planning Policy & City Development
Type of Retail Store,Grocery Stores/Supermarkets,Tesco Stores 4579,Capital related expenditure,26/07/2023,43.82,Capital - Planning Policy & City Development
Amusement/Entertainment,Amusement/Rec Serv - Def,Andrew Simpson Centre,Capital related expenditure,07/07/2023,60,Capital - Planning Policy & City Development
Business To Business Services,Misc Publishing & Printing,Www.Solopress.Com,Capital related expenditure,13/07/2023,50.84,Capital - Planning Policy & City Development
Business To Business Services,Misc Publishing & Printing,Www.Solopress.Com,Capital related expenditure,17/08/2023,72.4,Capital - Planning Policy & City Development
Clothing Services,Misc Apparel/Access Shops,Sq *the T Shirt Man - Che,Capital related expenditure,07/07/2023,190,Capital - Planning Policy & City Development
Business Services,Business Services - Default,National Pen Promotional,Supplies and Services related expenditure,27/09/2023,269.43,Director of Public Health
Business To Business Services,Misc Publishing & Printing,Www.Solopress.Com,Capital related expenditure,31/08/2023,352.32,Capital - Planning Policy & City Development
Other Supplies,Misc Speciality Retail,Amznmktplace,Supplies and Services related expenditure,21/09/2023,39.99,Director of Children's Services and Education
Transportation Conveyor,Bus Lines/Charter/Tour,First South Yorkshire,Transport related expenditure,20/09/2023,2,Director of Children's Services and Education
Transportation Conveyor,Bus Lines/Charter/Tour,First Hampshire,Transport related expenditure,20/09/2023,2,Director of Children's Services and Education
Transportation Conveyor,Bus Lines/Charter/Tour,Go South Coast,Transport related expenditure,18/08/2023,4,Director of Children's Services and Education
Transportation Conveyor,Passenger Railways,Swrailwayselfserve,Transport related expenditure,10/07/2023,5,Director of Children's Services and Education
Transportation Conveyor,Passenger Railways,Swrailwayselfserve,Transport related expenditure,31/08/2023,5.9,Director of Children's Services and Education
Transportation Conveyor,Passenger Railways,Trainline.Com,Transport related expenditure,04/07/2023,7.32,Director of Children's Services and Education
Eating And Drinking Places,Fast Food Restaurants,Starbucks Coffee,Supplies and Services related expenditure,15/08/2023,9.76,Director of Children's Services and Education
Eating And Drinking Places,Fast Food Restaurants,Costa Coffee 43011381,Supplies and Services related expenditure,11/09/2023,11.25,Director of Children's Services and Education
Government Service,Govt Serv - Default,Dvsa,Supplies and Services related expenditure,25/09/2023,23,Director of Children's Services and Education
Transportation Conveyor,Passenger Railways,Trainline,Transport related expenditure,21/09/2023,24.23,Director of Children's Services and Education
Facilities/Repair Supplies,Lumber/Build. Supply Stores,Www.Screwfix.Com,Supplies and Services related expenditure,21/09/2023,24.99,Director of Children's Services and Education
Transportation Conveyor,Passenger Railways,Railcard.Co.Uk,Transport related expenditure,17/07/2023,30,Director of Children's Services and Education
Transportation Conveyor,Passenger Railways,Trainline,Transport related expenditure,16/08/2023,30.44,Director of Children's Services and Education
Transportation Conveyor,Passenger Railways,Trainline,Transport related expenditure,03/07/2023,34.12,Director of Children's Services and Education
Transportation Conveyor,Passenger Railways,Trainline,Transport related expenditure,03/07/2023,36.56,Director of Children's Services and Education
Government Service,Govt Serv - Default,2maa038916299 Td E-Pmt,Supplies and Services related expenditure,20/07/2023,75,Director of Children's Services and Education
Government Service,Govt Serv - Default,2maa040426641 Td E-Pmt,Supplies and Services related expenditure,20/09/2023,75,Director of Children's Services and Education
Transportation Conveyor,Passenger Railways,Trainline,Transport related expenditure,12/07/2023,107.24,Director of Children's Services and Education
Transportation Conveyor,Passenger Railways,Trainline.Com,Transport related expenditure,10/08/2023,118.65,Director of Children's Services and Education
Transportation Conveyor,Passenger Railways,Trainline,Transport related expenditure,21/07/2023,131.78,Director of Children's Services and Education
Government Service,Colleges/Univ/Jc/Profession,Https://Www.Estore.Wlv,Premises related expenditure,26/07/2023,300,Director of Children's Services and Education
Business Services,Advertising Services,Facebk *wt8v9t7st2,Supplies and Services related expenditure,07/09/2023,11.67,Director of Corporate Services
Government Service,Govt Serv - Default,Portsmouth City Co,Transport related expenditure,12/07/2023,63.33,Director of Corporate Services
Government Service,Govt Serv - Default,Portsmouth City Co,Transport related expenditure,26/07/2023,63.33,Director of Corporate Services
Government Service,Govt Serv - Default,Portsmouth City Co,Transport related expenditure,29/09/2023,63.33,Director of Corporate Services
Business To Business Eqpt/Furn,Stationery/Office Supplies,Www.Banneruk.Com,Supplies and Services related expenditure,06/07/2023,4.68,"Director of Housing, Neighbourhood and Building Services"
Business To Business Eqpt/Furn,Stationery/Office Supplies,Www.Banneruk.Com,Supplies and Services related expenditure,29/09/2023,6.36,"Director of Housing, Neighbourhood and Building Services"
Business To Business Eqpt/Furn,Stationery/Office Supplies,Www.Banneruk.Com,Supplies and Services related expenditure,28/09/2023,29.76,"Director of Housing, Neighbourhood and Building Services"
Business To Business Eqpt/Furn,Stationery/Office Supplies,Www.Banneruk.Com,Supplies and Services related expenditure,01/09/2023,63.75,"Director of Housing, Neighbourhood and Building Services"
Business To Business Eqpt/Furn,Stationery/Office Supplies,Www.Banneruk.Com,Supplies and Services related expenditure,21/09/2023,82.98,"Director of Housing, Neighbourhood and Building Services"
Business To Business Eqpt/Furn,Stationery/Office Supplies,Www.Banneruk.Com,Supplies and Services related expenditure,06/07/2023,107.83,"Director of Housing, Neighbourhood and Building Services"
Business To Business Eqpt/Furn,Stationery/Office Supplies,Www.Banneruk.Com,Supplies and Services related expenditure,02/08/2023,150.15,"Director of Housing, Neighbourhood and Building Services"
Business To Business Eqpt/Furn,Stationery/Office Supplies,Www.Banneruk.Com,Supplies and Services related expenditure,20/09/2023,341.66,"Director of Housing, Neighbourhood and Building Services"
Automobile Services & Supplies,Service Stations,Tesco Pfs 4274,Supplies and Services related expenditure,07/07/2023,60.99,"Director of Culture, Leisure & Regulatory Services"
Other Supplies,Misc Gen Merchandise - Def,Wilko Retail Limited,Supplies and Services related expenditure,30/08/2023,2.92,"Director of Culture, Leisure & Regulatory Services"
Other Supplies,Discount Stores,Theworks,Supplies and Services related expenditure,23/08/2023,3.75,"Director of Culture, Leisure & Regulatory Services"
Facilities/Repair Supplies,Lumber/Build. Supply Stores,B&q Marketplace,Supplies and Services related expenditure,17/07/2023,4.57,"Director of Culture, Leisure & Regulatory Services"
Business Expenses/Services,Postage Stamps,Post Office Counter,Agency and Third Party Payments related expenditure,23/08/2023,5.71,"Director of Culture, Leisure & Regulatory Services"
Miscellaneous,Video Amusement Game Supply,Game Shop Limited,Supplies and Services related expenditure,17/07/2023,6.66,"Director of Culture, Leisure & Regulatory Services"
Other Supplies,Misc Gen Merchandise - Def,Wilko.Com,Supplies and Services related expenditure,15/07/2023,6.67,"Director of Culture, Leisure & Regulatory Services"
Government Service,Govt Serv - Default,Gen Register Office,Supplies and Services related expenditure,01/07/2023,9.17,"Director of Culture, Leisure & Regulatory Services"
Other Supplies,Discount Stores,Poundland Ltd - 1477,Supplies and Services related expenditure,17/07/2023,16.75,"Director of Culture, Leisure & Regulatory Services"
Other Supplies,Department Stores,Www.Argos.Co.Uk,Supplies and Services related expenditure,30/08/2023,14.99,"Director of Culture, Leisure & Regulatory Services"
Other Supplies,Discount Stores,Argos Ltd,Supplies and Services related expenditure,31/08/2023,28.32,"Director of Culture, Leisure & Regulatory Services"
Other Supplies,Misc Speciality Retail,Amznmktplace,Supplies and Services related expenditure,09/07/2023,43.12,"Director of Culture, Leisure & Regulatory Services"
Other Supplies,Department Stores,Euroelectronics Uk,Supplies and Services related expenditure,14/09/2023,56.59,"Director of Culture, Leisure & Regulatory Services"
Facilities/Repair Supplies,Lumber/Build. Supply Stores,B&q Marketplace,Supplies and Services related expenditure,16/08/2023,83.32,"Director of Culture, Leisure & Regulatory Services"
Facilities/Repair Supplies,Misc Home Furnishing,Bedeckhome,Supplies and Services related expenditure,11/08/2023,122.92,"Director of Culture, Leisure & Regulatory Services"
Miscellaneous,Charitable/Soc Service Orgs,Zettle_*the Society Of St,Supplies and Services related expenditure,22/07/2023,161,"Director of Culture, Leisure & Regulatory Services"
Business To Business Eqpt/Furn,Commercial Furniture,Manutan Uk,Supplies and Services related expenditure,16/08/2023,205,"Director of Culture, Leisure & Regulatory Services"
Amusement/Entertainment,Health & Beauty Spas,Sumup *bounce Fitness Wi,Agency and Third Party Payments related expenditure,29/09/2023,208.33,"Director of Culture, Leisure & Regulatory Services"
Other Supplies,Catalog Merchant,Nisbets Ltd,Supplies and Services related expenditure,11/08/2023,249.98,"Director of Culture, Leisure & Regulatory Services"
Other Supplies,Department Stores,Www.Johnlewis.Com,Supplies and Services related expenditure,14/09/2023,249.99,"Director of Culture, Leisure & Regulatory Services"
Facilities/Repair Supplies,Home Supply Warehouse Stores,B & Q 1238,Supplies and Services related expenditure,14/07/2023,1.16,"Director of Housing, Neighbourhood and Building Services"
Facilities/Repair Supplies,Home Supply Warehouse Stores,B & Q 1238,Supplies and Services related expenditure,17/07/2023,1.24,"Director of Housing, Neighbourhood and Building Services"
Eating And Drinking Places,Eating Places/Restaurants,Greggs Plc,Supplies and Services related expenditure,12/09/2023,1.58,Director of Children's Services and Education
Caterers Food,Caterers,Waterlogic Gb Limited,Supplies and Services related expenditure,18/07/2023,2.79,Director of Children's Services and Education
Type of Retail Store,Grocery Stores/Supermarkets,Asda Stores,Supplies and Services related expenditure,17/07/2023,3.12,"Director of Housing, Neighbourhood and Building Services"
Facilities/Repair Supplies,Home Supply Warehouse Stores,B & Q 1238,Supplies and Services related expenditure,12/07/2023,3.29,"Director of Housing, Neighbourhood and Building Services"
Type of Retail Store,Grocery Stores/Supermarkets,Tesco Stores 3055,Supplies and Services related expenditure,18/09/2023,4.97,Director of Children's Services and Education
Miscellaneous,Continuity/Subscription Mercht,Tesco Subscription,Supplies and Services related expenditure,27/07/2023,7.99,Director of Children's Services and Education
Miscellaneous,Continuity/Subscription Mercht,Tesco Subscription,Supplies and Services related expenditure,27/08/2023,7.99,Director of Children's Services and Education
Miscellaneous,Continuity/Subscription Mercht,Tesco Subscription,Supplies and Services related expenditure,27/09/2023,7.99,Director of Children's Services and Education
Type of Retail Store,Grocery Stores/Supermarkets,Tesco Stores 3055,Supplies and Services related expenditure,10/07/2023,8.5,Director of Children's Services and Education
Type of Retail Store,Grocery Stores/Supermarkets,Tesco Stores 3055,Supplies and Services related expenditure,03/07/2023,10.83,Director of Children's Services and Education
Type of Retail Store,Grocery Stores/Supermarkets,Tesco Stores 3055,Supplies and Services related expenditure,10/07/2023,-14.45,Director of Children's Services and Education
Eating And Drinking Places,Eating Places/Restaurants,Greggs Plc,Supplies and Services related expenditure,12/09/2023,15.8,Director of Children's Services and Education
Type of Retail Store,Grocery Stores/Supermarkets,Tesco Stores 3055,Supplies and Services related expenditure,25/09/2023,16.08,Director of Children's Services and Education
Type of Retail Store,Grocery Stores/Supermarkets,Tesco Stores 3055,Supplies and Services related expenditure,17/07/2023,16.2,Director of Children's Services and Education
Facilities/Repair Supplies,Home Supply Warehouse Stores,B & Q 1238,Supplies and Services related expenditure,09/08/2023,15,"Director of Housing, Neighbourhood and Building Services"
Type of Retail Store,Grocery Stores/Supermarkets,Tesco Stores 3055,Supplies and Services related expenditure,06/09/2023,15.08,Director of Children's Services and Education
Type of Retail Store,Grocery Stores/Supermarkets,Tesco Stores 3055,Supplies and Services related expenditure,18/09/2023,17.58,Director of Children's Services and Education
Business To Business Eqpt/Furn,Computer Software Stores,Sp The Book Bundle,Supplies and Services related expenditure,06/09/2023,21.98,Director of Children's Services and Education
Type of Retail Store,Grocery Stores/Supermarkets,Tesco Stores 3055,Supplies and Services related expenditure,11/09/2023,18.41,Director of Children's Services and Education
Business Expenses/Services,Postage Stamps,Post Office Counter,Supplies and Services related expenditure,14/09/2023,23.05,Director of Children's Services and Education
Type of Retail Store,Grocery Stores/Supermarkets,Tesco Stores 3055,Supplies and Services related expenditure,17/07/2023,20.67,Director of Children's Services and Education
Business To Business Facility/,Industrial Supplies - Def,Arco Ltd,Supplies and Services related expenditure,12/09/2023,21.6,"Director of Housing, Neighbourhood and Building Services"
Type of Retail Store,Grocery Stores/Supermarkets,Tesco Stores 3055,Supplies and Services related expenditure,11/09/2023,27.26,Director of Children's Services and Education
Equipment And Furniture,Household Appliance Stores,Machine Mart Ltd,Supplies and Services related expenditure,29/09/2023,26.99,"Director of Housing, Neighbourhood and Building Services"
Facilities/Repair Supplies,Lumber/Build. Supply Stores,Screwfix Dir Ltd,Supplies and Services related expenditure,17/07/2023,28.9,"Director of Housing, Neighbourhood and Building Services"
Type of Retail Store,Grocery Stores/Supermarkets,Tesco Stores 3055,Supplies and Services related expenditure,25/09/2023,29.15,Director of Children's Services and Education
Type of Retail Store,Grocery Stores/Supermarkets,Tesco Stores 3055,Supplies and Services related expenditure,18/09/2023,35.98,Director of Children's Services and Education
Type of Retail Store,Grocery Stores/Supermarkets,Tesco Stores 3055,Supplies and Services related expenditure,11/09/2023,36.86,Director of Children's Services and Education
Equipment And Furniture,Equip/Furn Rent/Lease Serv,Beaver Tool Hire Chichest,Premises related expenditure,20/07/2023,-34.5,Director of Children's Services and Education
Facilities/Repair Supplies,Home Supply Warehouse Stores,B & Q 1238,Supplies and Services related expenditure,30/08/2023,36.27,"Director of Housing, Neighbourhood and Building Services"
Type of Retail Store,Grocery Stores/Supermarkets,Tesco Stores 3055,Supplies and Services related expenditure,03/07/2023,48.87,Director of Children's Services and Education
Type of Retail Store,Grocery Stores/Supermarkets,Tesco Stores 3055,Supplies and Services related expenditure,17/07/2023,48.89,Director of Children's Services and Education
Other Supplies,Misc Gen Merchandise - Def,Fridge Seals Direct,Premises related expenditure,25/09/2023,41,Director of Children's Services and Education
Type of Retail Store,Grocery Stores/Supermarkets,Tesco Stores 3055,Supplies and Services related expenditure,25/09/2023,50.84,Director of Children's Services and Education
Other Supplies,Misc Gen Merchandise - Def,Temu.Com,Supplies and Services related expenditure,11/07/2023,42.52,Director of Children's Services and Education
Other Supplies,Discount Stores,Www.Theworks.Co.Uk,Supplies and Services related expenditure,06/09/2023,53,Director of Children's Services and Education
Type of Retail Store,Grocery Stores/Supermarkets,Tesco Stores 3055,Supplies and Services related expenditure,10/07/2023,54.32,Director of Children's Services and Education
Type of Retail Store,Grocery Stores/Supermarkets,Tesco Stores 3055,Supplies and Services related expenditure,06/09/2023,58.47,Director of Children's Services and Education
Facilities Maintenance,Specialty Cleaning/Polishing,Cjs Portsmouth Limited,Premises related expenditure,01/09/2023,62.4,"Director of Housing, Neighbourhood and Building Services"
Equipment And Furniture,Equip/Furn Rent/Lease Serv,Beaver Tool Hire Chichest,Premises related expenditure,06/09/2023,-65.74,Director of Children's Services and Education
Business To Business Facility/,Industrial Supplies - Def,Arco Ltd,Supplies and Services related expenditure,17/08/2023,55.85,"Director of Housing, Neighbourhood and Building Services"
Other Supplies,Misc Gen Merchandise - Def,Intermedical (UK) Ltd,Supplies and Services related expenditure,20/09/2023,62.99,Director of Children's Services and Education
Business To Business Facility/,Industrial Supplies - Def,Arco Limited,Supplies and Services related expenditure,11/08/2023,-67.49,"Director of Housing, Neighbourhood and Building Services"
Business To Business Facility/,Industrial Supplies - Def,Arco Limited,Supplies and Services related expenditure,29/08/2023,-78.06,"Director of Housing, Neighbourhood and Building Services"
Equipment And Furniture,Equip/Furn Rent/Lease Serv,Beaver Tool Hire Chichest,Premises related expenditure,18/07/2023,83.33,Director of Children's Services and Education
Business Services,Business Services - Default,Eb *portsmouth Inclusi,Supplies and Services related expenditure,27/09/2023,100,Director of Children's Services and Education
Facilities/Repair Supplies,Home Supply Warehouse Stores,B & Q 1238,Supplies and Services related expenditure,12/07/2023,86.11,"Director of Housing, Neighbourhood and Building Services"
Facilities/Repair Supplies,Lawn/Garden Supply/Nursery,Carters Of Swanwic,Supplies and Services related expenditure,11/09/2023,89.35,"Director of Housing, Neighbourhood and Building Services"
Business To Business Facility/,Industrial Supplies - Def,Arco Ltd,Supplies and Services related expenditure,17/08/2023,91.66,"Director of Housing, Neighbourhood and Building Services"
Business To Business Facility/,Industrial Supplies - Def,Arco Ltd,Supplies and Services related expenditure,29/08/2023,104.31,"Director of Housing, Neighbourhood and Building Services"
Government Service,Vocational/Trade Schools,The Spelling League,Supplies and Services related expenditure,03/09/2023,120,Director of Children's Services and Education
Business To Business Facility/,Industrial Supplies - Def,Arco Limited,Supplies and Services related expenditure,02/08/2023,147.15,"Director of Housing, Neighbourhood and Building Services"
Equipment And Furniture,Equip/Furn Rent/Lease Serv,Beaver Tool Hire Chichest,Premises related expenditure,29/08/2023,200,Director of Children's Services and Education
Type of Retail Store,Music Stores/Pianos,Sp Chamberlain Music,Supplies and Services related expenditure,13/09/2023,175.83,Director of Children's Services and Education
Business To Business Facility/,Industrial Supplies - Def,Pirtek Portsmouth,Supplies and Services related expenditure,18/07/2023,230.36,"Director of Housing, Neighbourhood and Building Services"
Equipment And Furniture,Equip/Furn Rent/Lease Serv,Speedy Asset Services Ltd,Supplies and Services related expenditure,17/07/2023,250,Director of Children's Services and Education
Government Service,Tax Payments,Dvla Vehicle Tax,Transport related expenditure,04/09/2023,325,Director of Children's Services and Education
Hotels And Motels,Premier Travel Inns,Premier Inn,Supplies and Services related expenditure,30/08/2023,-9.99,Director of Adult Care
Government Service,Govt Serv - Default,Pcc Internet Payment,Supplies and Services related expenditure,13/07/2023,10,Director of Adult Care
Other Supplies,Misc Speciality Retail,Amznmktplace,Supplies and Services related expenditure,26/08/2023,13.98,Director of Adult Care
Other Supplies,Misc Speciality Retail,Amznmktplace,Supplies and Services related expenditure,25/08/2023,18.99,Director of Adult Care
Other Supplies,Department Stores,Www.Argos.Co.Uk,Supplies and Services related expenditure,17/08/2023,24.95,Director of Adult Care
Miscellaneous,Fines,Hmcts Portsmouth092p,Supplies and Services related expenditure,09/08/2023,26,Director of Adult Care
Other Supplies,Misc Speciality Retail,Amznmktplace,Supplies and Services related expenditure,26/08/2023,26.17,Director of Adult Care
Other Supplies,Misc Speciality Retail,Amznmktplace,Supplies and Services related expenditure,26/08/2023,26.29,Director of Adult Care
Other Supplies,Misc Speciality Retail,Amznmktplace,Supplies and Services related expenditure,05/07/2023,31.99,Director of Adult Care
Other Supplies,Misc Speciality Retail,Amz*femereina,Supplies and Services related expenditure,04/09/2023,-32.52,Director of Adult Care
Government Service,Govt Serv - Default,Portsmouth City Co,Supplies and Services related expenditure,13/09/2023,36.19,Director of Finance & Resources
Business Expenses/Services,Florists,123*flowers,Supplies and Services related expenditure,17/08/2023,42.48,Director of Adult Care
Other Supplies,Department Stores,Www.Argos.Co.Uk,Supplies and Services related expenditure,31/07/2023,43.95,Director of Adult Care
Professional Services,Insurance Sales/Underwrite,Staysure Insurance,Supplies and Services related expenditure,06/09/2023,54.88,Director of Adult Care
Other Supplies,Misc Speciality Retail,Amznmktplace,Supplies and Services related expenditure,27/08/2023,58.98,Director of Adult Care
Other Supplies,Misc Speciality Retail,Amznmktplace,Supplies and Services related expenditure,25/08/2023,79.79,Director of Adult Care
Other Supplies,Misc Speciality Retail,Amznmktplace,Supplies and Services related expenditure,06/07/2023,110.89,Director of Adult Care
Other Supplies,Department Stores,Www.Argos.Co.Uk,Supplies and Services related expenditure,12/09/2023,135.95,Director of Adult Care
Type of Retail Store,Sports/Riding Apparel Store,Sports Direct,Supplies and Services related expenditure,31/07/2023,141.97,Director of Adult Care
Hotels And Motels,Lodging/Hotels/Motels/Resorts,Www.Butlins.Com,Supplies and Services related expenditure,03/07/2023,144.65,Director of Adult Care
Hotels And Motels,Lodging/Hotels/Motels/Resorts,Www.Butlins.Com,Supplies and Services related expenditure,07/08/2023,144.65,Director of Adult Care
Hotels And Motels,Lodging/Hotels/Motels/Resorts,Www.Butlins.Com,Supplies and Services related expenditure,04/09/2023,144.65,Director of Adult Care
Amusement/Entertainment,Theatrical Producers,Ticketweb T4,Supplies and Services related expenditure,14/08/2023,174.45,Director of Adult Care
Miscellaneous,Other Direct Marketers,Amazon.Co.Uk,Supplies and Services related expenditure,06/07/2023,223.99,Director of Adult Care
Hotels And Motels,Premier Travel Inns,Premier Inn,Supplies and Services related expenditure,30/08/2023,228.97,Director of Adult Care
Hotels And Motels,Travelodge,Travelodge Gb0000,Supplies and Services related expenditure,02/08/2023,236.6,Director of Adult Care
Hotels And Motels,Premier Travel Inns,Premier Inn,Supplies and Services related expenditure,06/09/2023,239.07,Director of Adult Care
Hotels And Motels,Premier Travel Inns,Premier Inn,Supplies and Services related expenditure,14/08/2023,243.97,Director of Adult Care
Other Supplies,Department Stores,Www.Argos.Co.Uk,Supplies and Services related expenditure,14/09/2023,288.93,Director of Adult Care
Hotels And Motels,Premier Travel Inns,Premier Inn,Supplies and Services related expenditure,11/09/2023,302.97,Director of Adult Care
Other Supplies,Department Stores,Www.Argos.Co.Uk,Supplies and Services related expenditure,07/08/2023,360,Director of Adult Care
Other Supplies,Department Stores,Www.Argos.Co.Uk,Supplies and Services related expenditure,04/09/2023,442.95,Director of Adult Care
Government Service,Govt Serv - Default,Disclosure & Barring,Supplies and Services related expenditure,05/07/2023,13,Director of Children's Services and Education
Transportation Conveyor,Bus Lines/Charter/Tour,First Bus - Web,Transport related expenditure,07/08/2023,4.9,Director of Children's Services and Education
Transportation Conveyor,Bus Lines/Charter/Tour,First Bus - Web,Transport related expenditure,09/08/2023,4.9,Director of Children's Services and Education
Transportation Conveyor,Bus Lines/Charter/Tour,First Bus - Web,Transport related expenditure,14/08/2023,4.9,Director of Children's Services and Education
Transportation Conveyor,Bus Lines/Charter/Tour,First Bus - Web,Transport related expenditure,22/08/2023,4.9,Director of Children's Services and Education
Transportation Conveyor,Bus Lines/Charter/Tour,First Bus - Web,Transport related expenditure,03/07/2023,9.8,Director of Children's Services and Education
Other Supplies,Department Stores,Www.Argos.Co.Uk,Supplies and Services related expenditure,06/09/2023,10,Director of Children's Services and Education
Type of Retail Store,Grocery Stores/Supermarkets,Tesco Gift Card,Supplies and Services related expenditure,21/09/2023,10,Director of Children's Services and Education
Government Service,Govt Serv - Default,Pcc Internet Payment,Supplies and Services related expenditure,26/07/2023,11,Director of Children's Services and Education
Government Service,Govt Serv - Default,Kent County Council,Supplies and Services related expenditure,26/07/2023,11,Director of Children's Services and Education
Government Service,Govt Serv - Default,Pcc Internet Payment,Supplies and Services related expenditure,17/08/2023,11,Director of Children's Services and Education
Government Service,Govt Serv - Default,Pcc Internet Payment,Supplies and Services related expenditure,26/09/2023,11,Director of Children's Services and Education
Government Service,Govt Serv - Default,Pcc Internet Payment,Supplies and Services related expenditure,29/09/2023,11,Director of Children's Services and Education
Transportation Conveyor,Taxicabs/Limousines,Sq *ryde Taxis Iow Limite,Transport related expenditure,21/08/2023,12,Director of Children's Services and Education
Other Supplies,Department Stores,Www.Argos.Co.Uk,Supplies and Services related expenditure,03/07/2023,14.5,Director of Children's Services and Education
Transportation Conveyor,Bus Lines/Charter/Tour,First Bus - Web,Transport related expenditure,19/09/2023,14.7,Director of Children's Services and Education
Other Supplies,Misc Speciality Retail,Amznbusiness,Supplies and Services related expenditure,01/08/2023,12.31,Director of Children's Services and Education
Transportation Conveyor,Passenger Railways,Trainline,Transport related expenditure,01/08/2023,14.96,Director of Children's Services and Education
Transportation Conveyor,Passenger Railways,Trainline.Com,Transport related expenditure,09/08/2023,14.96,Director of Children's Services and Education
Transportation Conveyor,Passenger Railways,Trainline,Transport related expenditure,17/08/2023,14.96,Director of Children's Services and Education
Other Supplies,Department Stores,Www.Argos.Co.Uk,Supplies and Services related expenditure,22/09/2023,14.99,Director of Children's Services and Education
Transportation Conveyor,Bus Lines/Charter/Tour,First Bus,Transport related expenditure,07/09/2023,15,Director of Children's Services and Education
Transportation Conveyor,Bus Lines/Charter/Tour,First Bus - Web,Transport related expenditure,18/09/2023,19.6,Director of Children's Services and Education
Other Supplies,Misc Gen Merchandise - Def,Prezzee/Gb7c03c886,Supplies and Services related expenditure,08/09/2023,20,Director of Children's Services and Education
Type of Retail Store,Grocery Stores/Supermarkets,Tesco Gift Card,Supplies and Services related expenditure,22/09/2023,20,Director of Children's Services and Education
Government Service,Govt Serv - Default,Pcc Internet Payment,Supplies and Services related expenditure,07/08/2023,22,Director of Children's Services and Education
Government Service,Govt Serv - Default,Pcc Internet Payment,Supplies and Services related expenditure,07/08/2023,22,Director of Children's Services and Education
Government Service,Govt Serv - Default,Pcc Internet Payment,Supplies and Services related expenditure,18/08/2023,22,Director of Children's Services and Education
Transportation Conveyor,Local Commuter Transport,Hovertravel Ltd- Ecomm,Transport related expenditure,20/09/2023,23,Director of Children's Services and Education
Transportation Conveyor,Passenger Railways,Trainline,Transport related expenditure,20/09/2023,24.23,Director of Children's Services and Education
Type of Retail Store,Grocery Stores/Supermarkets,Asda Stores Ltd,Supplies and Services related expenditure,01/09/2023,25,Director of Children's Services and Education
Type of Retail Store,Grocery Stores/Supermarkets,Asda Stores Ltd,Supplies and Services related expenditure,06/09/2023,25,Director of Children's Services and Education
Type of Retail Store,Grocery Stores/Supermarkets,Tesco Gift Card,Supplies and Services related expenditure,07/09/2023,25,Director of Children's Services and Education
Type of Retail Store,Grocery Stores/Supermarkets,Tesco Gift Card,Supplies and Services related expenditure,20/09/2023,25,Director of Children's Services and Education
Type of Retail Store,Grocery Stores/Supermarkets,Tesco Gift Card,Supplies and Services related expenditure,22/09/2023,25,Director of Children's Services and Education
Type of Retail Store,Grocery Stores/Supermarkets,Asda Stores Ltd,Supplies and Services related expenditure,05/07/2023,30,Director of Children's Services and Education
Type of Retail Store,Grocery Stores/Supermarkets,Tesco Gift Card,Supplies and Services related expenditure,07/07/2023,30,Director of Children's Services and Education
Type of Retail Store,Grocery Stores/Supermarkets,Tesco Gift Card,Supplies and Services related expenditure,24/07/2023,30,Director of Children's Services and Education
Type of Retail Store,Grocery Stores/Supermarkets,Asda Stores Ltd,Supplies and Services related expenditure,19/09/2023,30,Director of Children's Services and Education
Transportation Conveyor,Bus Lines/Charter/Tour,First Bus,Transport related expenditure,20/09/2023,30,Director of Children's Services and Education
Transportation Conveyor,Bus Lines/Charter/Tour,First Bus,Transport related expenditure,22/09/2023,30,Director of Children's Services and Education
Type of Retail Store,Grocery Stores/Supermarkets,Asda Stores Ltd,Supplies and Services related expenditure,27/09/2023,30,Director of Children's Services and Education
Transportation Conveyor,Passenger Railways,Trainline,Transport related expenditure,04/07/2023,30.75,Director of Children's Services and Education
Transportation Conveyor,Passenger Railways,Trainline,Transport related expenditure,16/08/2023,30.75,Director of Children's Services and Education
Transportation Conveyor,Passenger Railways,Trainline,Transport related expenditure,26/09/2023,30.75,Director of Children's Services and Education
Transportation Conveyor,Local Commuter Transport,Hovertravel Ltd- Ecomm,Transport related expenditure,03/07/2023,31,Director of Children's Services and Education
Transportation Conveyor,Local Commuter Transport,Hovertravel Ltd- Ecomm,Transport related expenditure,03/07/2023,31,Director of Children's Services and Education
Transportation Conveyor,Local Commuter Transport,Hovertravel Ltd- Ecomm,Transport related expenditure,07/08/2023,31,Director of Children's Services and Education
Transportation Conveyor,Local Commuter Transport,Hovertravel Ltd- Ecomm,Transport related expenditure,09/08/2023,31,Director of Children's Services and Education
Transportation Conveyor,Local Commuter Transport,Hovertravel Ltd- Ecomm,Transport related expenditure,14/08/2023,31,Director of Children's Services and Education
Transportation Conveyor,Local Commuter Transport,Hovertravel Ltd- Ecomm,Transport related expenditure,21/08/2023,31,Director of Children's Services and Education
Transportation Conveyor,Local Commuter Transport,Hovertravel Ltd- Ecomm,Transport related expenditure,22/08/2023,31,Director of Children's Services and Education
Transportation Conveyor,Local Commuter Transport,Hovertravel Ltd- Ecomm,Transport related expenditure,27/09/2023,31,Director of Children's Services and Education
Transportation Conveyor,Passenger Railways,Trainline,Transport related expenditure,11/09/2023,32.99,Director of Children's Services and Education
Transportation Conveyor,Passenger Railways,Trainline,Transport related expenditure,26/09/2023,32.99,Director of Children's Services and Education
Transportation Conveyor,Bus Lines/Charter/Tour,First Bus,Transport related expenditure,01/08/2023,34,Director of Children's Services and Education
Transportation Conveyor,Bus Lines/Charter/Tour,First Bus,Transport related expenditure,08/08/2023,34,Director of Children's Services and Education
Transportation Conveyor,Bus Lines/Charter/Tour,First Bus,Transport related expenditure,18/08/2023,34,Director of Children's Services and Education
Government Service,Govt Serv - Default,Pcc Internet Payment,Supplies and Services related expenditure,07/07/2023,35,Director of Children's Services and Education
Government Service,Govt Serv - Default,Pcc Internet Payment,Supplies and Services related expenditure,07/07/2023,35,Director of Children's Services and Education
Government Service,Govt Serv - Default,Pcc Internet Payment,Supplies and Services related expenditure,07/07/2023,35,Director of Children's Services and Education
Government Service,Govt Serv - Default,Pcc Internet Payment,Supplies and Services related expenditure,07/08/2023,35,Director of Children's Services and Education
Government Service,Govt Serv - Default,Pcc Internet Payment,Supplies and Services related expenditure,07/08/2023,35,Director of Children's Services and Education
Government Service,Govt Serv - Default,Pcc Internet Payment,Supplies and Services related expenditure,18/08/2023,35,Director of Children's Services and Education
Other Supplies,Department Stores,Www.Argos.Co.Uk,Supplies and Services related expenditure,21/08/2023,35.99,Director of Children's Services and Education
Government Service,Govt Serv - Default,Portsmouth City Co,Supplies and Services related expenditure,27/07/2023,31.67,Director of Children's Services and Education
Transportation Conveyor,Bus Lines/Charter/Tour,First Bus,Transport related expenditure,31/08/2023,38,Director of Children's Services and Education
Government Service,Govt Serv - Default,Portsmouth City Co,Transport related expenditure,14/09/2023,31.67,Director of Children's Services and Education
Other Supplies,Department Stores,Www.Argos.Co.Uk,Supplies and Services related expenditure,01/08/2023,39.94,Director of Children's Services and Education
Type of Retail Store,Grocery Stores/Supermarkets,Asda Stores Ltd,Supplies and Services related expenditure,25/07/2023,40,Director of Children's Services and Education
Type of Retail Store,Grocery Stores/Supermarkets,Tesco Gift Card,Supplies and Services related expenditure,01/08/2023,40,Director of Children's Services and Education
Type of Retail Store,Grocery Stores/Supermarkets,Tesco Gift Card,Supplies and Services related expenditure,23/08/2023,40,Director of Children's Services and Education
Type of Retail Store,Grocery Stores/Supermarkets,Asda Stores Ltd,Supplies and Services related expenditure,29/08/2023,40,Director of Children's Services and Education
Type of Retail Store,Grocery Stores/Supermarkets,Tesco Gift Card,Supplies and Services related expenditure,29/08/2023,40,Director of Children's Services and Education
Type of Retail Store,Grocery Stores/Supermarkets,Tesco Gift Card,Supplies and Services related expenditure,05/09/2023,40,Director of Children's Services and Education
Type of Retail Store,Grocery Stores/Supermarkets,Tesco Gift Card,Supplies and Services related expenditure,07/09/2023,40,Director of Children's Services and Education
Type of Retail Store,Grocery Stores/Supermarkets,Asda Stores Ltd,Supplies and Services related expenditure,14/09/2023,40,Director of Children's Services and Education
Type of Retail Store,Grocery Stores/Supermarkets,Tesco Gift Card,Supplies and Services related expenditure,15/09/2023,40,Director of Children's Services and Education
Type of Retail Store,Grocery Stores/Supermarkets,Tesco Gift Card,Supplies and Services related expenditure,15/09/2023,40,Director of Children's Services and Education
Type of Retail Store,Grocery Stores/Supermarkets,Tesco Gift Card,Supplies and Services related expenditure,29/09/2023,40,Director of Children's Services and Education
Transportation Conveyor,Passenger Railways,Trainline,Transport related expenditure,07/09/2023,42.56,Director of Children's Services and Education
Other Supplies,Department Stores,Www.Argos.Co.Uk,Premises related expenditure,05/07/2023,42.95,Director of Children's Services and Education
Transportation Conveyor,Passenger Railways,Trainline.Com,Transport related expenditure,09/08/2023,45.41,Director of Children's Services and Education
Transportation Conveyor,Bus Lines/Charter/Tour,National Express Limited,Transport related expenditure,27/07/2023,46.8,Director of Children's Services and Education
Other Supplies,Misc Speciality Retail,Amznmktplace,Premises related expenditure,18/09/2023,41.66,Director of Children's Services and Education
Type of Retail Store,Grocery Stores/Supermarkets,Tesco Gift Card,Supplies and Services related expenditure,01/08/2023,50,Director of Children's Services and Education
Type of Retail Store,Grocery Stores/Supermarkets,Asda Stores Ltd,Supplies and Services related expenditure,16/08/2023,50,Director of Children's Services and Education
Type of Retail Store,Grocery Stores/Supermarkets,Asda Stores Ltd,Supplies and Services related expenditure,31/08/2023,50,Director of Children's Services and Education
Type of Retail Store,Grocery Stores/Supermarkets,Tesco Gift Card,Supplies and Services related expenditure,05/09/2023,50,Director of Children's Services and Education
Miscellaneous,Misc Personal Serv - Def,Marie Rae Counselling,Supplies and Services related expenditure,05/09/2023,50,Director of Children's Services and Education
Type of Retail Store,Grocery Stores/Supermarkets,Tesco Gift Card,Supplies and Services related expenditure,08/09/2023,50,Director of Children's Services and Education
Other Supplies,Misc Gen Merchandise - Def,Prezzee/Gb6d510111,Supplies and Services related expenditure,08/09/2023,50,Director of Children's Services and Education
